Cogmind - Beta 14 @@@ ROGUE MODE // 2024.11.26 @ 02:01:36 Player: MarKhan Result: Destroyed by 05-8XO(M) with Slug Cannon Performance ------------- Evolutions (9) 4500 Regions Visited (32) 6400 Robots Destroyed (574) 2870 Value Destroyed (33434) 33434 Prototype IDs (57) 1140 Alien Tech Used (0) 0 Bonus (25446) 25446 TOTAL SCORE: 73790 Bonus ------- High Alert Combat Kills 8367 Follower Combat Kills 5272 Entered Garrisons 2200 Used RIF Installer 7000 Network Hubs Disabled 800 Aligned with FarCom 300 A7 Reached Mainframe 300 Met R17 at Cetus 500 Met R17 at Research 2000 Friendly Fire -1293 Cogmind --------- Core Integrity 0/1600 Matter 235/300 Energy 349/350 System Corruption 34% Temperature Cool (42) Movement Core (550) Ox10 Location -1/Command Parts ------- > --- POWER (2) -------- Reinforced Quantum Reactor > --- PROPULSION (6) --- (None) > --- UTILITY (13) ----- Graphene Brace Experimental Hacking Suite Relay Coupler [Sentry] (44) > --- WEAPON (4) ------- (None) > --- INVENTORY (5) ---- Energy Well (350) Heavy Armor Plating Relay Coupler [Specialist] (37) Advanced Remote Datajack Peak State ------------ > --- POWER ------------ Reinforced Quantum Reactor Improved Quantum Reactor > --- PROPULSION ------- Biometal Leg Biometal Leg Enhanced Biometal Leg Centrium Leg Centrium Leg Centrium Leg > --- UTILITY ---------- Experimental Heat Sink Advanced Cooling System Advanced Cooling System Huge Storage Unit Experimental Targeting Computer Experimental Targeting Computer Advanced Weapon Cycler Centrium Light Armor Plating Centrium Light Armor Plating Graphene Brace Experimental Hacking Suite Relay Coupler [Swarmer] Relay Coupler [Sentry] > --- WEAPON ----------- Enhanced Quantum Rifle Enhanced Quantum Rifle Enhanced Nova Cannon Enhanced Nova Cannon > --- INVENTORY -------- Heavy Antimatter Reactor Quantum Reactor Quantum Reactor Enhanced Biometal Leg Experimental Heat Sink Energy Well Matter Compressor Advanced Kinecellerator Improved Utility Shielding Heavy Reflective Plating Medium Insulated Plating Heavy Insulated Plating EM Disruption Field Relay Coupler [Swarmer] Relay Coupler [Specialist] High-powered Tractor Beam Enhanced Quantum Rifle Enhanced Quantum Rifle Rocket Array Fusion Bomb Launcher Advanced Remote Datajack Advanced Remote Datajack Improved Plasma Cutter [Rating: 202] Favorites ----------- Power Quantum Reactor Engine Improved Deuterium Engine Power Core Neutrino Core Reactor Quantum Reactor Propulsion Light Treads Treads Light Treads Leg Myomer Leg Hover Unit Gravmag System Flight Unit Surge Thruster Utility Huge Storage Unit Device Advanced Cooling System Storage Huge Storage Unit Processor Experimental Targeting Computer Hackware Experimental Hacking Suite Protection Improved Medium Armor Plating Weapon Enhanced Nova Cannon Energy Gun Enhanced Quantum Rifle Energy Cannon Enhanced Nova Cannon Ballistic Gun Assault Rifle Ballistic Cannon Bore Cannon Launcher Heavy Missile Launcher Special Weapon Improved Remote Datajack Special Melee Weapon Improved Datajack Build | -11 -10 -10 -10 -9 -8 -8 -8 -8 -7 -7 -7 -7 -6 -6 -5 -5 -4 -4 -4 -4 -4 -4 -4 -4 -3 -3 -2 -2 -1 -1 -1 -1 ------- Run | Yrd Mat Min Exi Min Mat Gar Mat Gar Fac Gar Fac Gar Fac Gar Fac Gar Fac Gar Fac Ext Cet Arc Hub Gar Res Gar Res Gar Acc Gar Acc Com Slots Evolved 18 | . . . . . 4 . . . 2 . . . 2 . 2 . 2 . . . . . . . 2 . 2 . 2 . . . Power 1 | . . . . . . . . . . . . . . . 1 . . . . . . . . . . . . . . . . . Propulsion 4 | . . . . . 2 . . . 1 . . . 1 . . . . . . . . . . . . . . . . . . . Utility 11 | . . . . . 2 . . . 1 . . . 1 . 1 . 1 . . . . . . . 1 . 2 . 2 . . . Weapon 2 | . . . . . . . . . . . . . . . . . 1 . . . . . . . 1 . . . . . . . Parts Attached 809 | 7 14 . 1 5 28 29 19 32 30 25 . 44 9 12 71 46 25 33 23 15 6 2 32 43 16 56 40 32 2 27 28 57 Power 55 | 1 3 . . . . 2 2 . . 2 . 3 . . 5 4 . 1 1 2 1 . 3 2 3 3 2 1 . 4 1 9 Engine 17 | 1 3 . . . . 1 2 . . 2 . 3 . . 2 1 . . . . . . . 1 1 . . . . . . . Core 4 | . . . . . . 1 . . . . . . . . 3 . . . . . . . . . . . . . . . . . Reactor 34 | . . . . . . . . . . . . . . . . 3 . 1 1 2 1 . 3 1 2 3 2 1 . 4 1 9 Propulsion 136 | 2 2 . . 1 3 6 14 1 2 7 . 12 1 . 11 8 1 2 6 . 1 . 2 6 1 13 4 10 . 5 6 9 Treads 55 | 2 2 . . 1 3 1 7 1 . . . 7 1 . 4 5 1 2 6 . 1 . 2 6 1 2 . . . . . . Leg 74 | . . . . . . 3 7 . 2 5 . 2 . . 7 3 . . . . . . . . . 11 4 10 . 5 6 9 Wheel . | . . . . . . . . . . . . . . . . . . . . . . . . . . . . . . . . . Hover 5 | . . . . . . 2 . . . 2 . 1 . . . . . . . . . . . . . . . . . . . . Flight 2 | . . . . . . . . . . . . 2 . . . . . . . . . . . . . . . . . . . . Utility 296 | 2 4 . 1 2 8 3 2 14 10 4 . 14 2 4 35 10 19 20 10 6 1 2 19 15 6 22 14 8 2 5 14 18 Device 136 | 1 1 . . 1 1 . . 2 4 . . 5 . 3 18 5 13 10 7 2 . 2 14 7 1 4 10 2 1 3 12 7 Storage 8 | 1 2 . . . 2 . 1 . . . . . . . 1 . . . . . . . . 1 . . . . . . . . Processor 15 | . . . . . 2 . . . . . . . . . 1 1 3 1 . . . . . 2 2 . . 1 1 . 1 . Hackware 50 | . . . . . . 1 . 2 2 2 . 2 2 . 3 2 2 8 2 . . . 1 2 1 12 1 3 . 1 1 . Protection 87 | . 1 . 1 1 3 2 1 10 4 2 . 7 . 1 12 2 1 1 1 4 1 . 4 3 2 6 3 2 . 1 . 11 Artifact . | . . . . . . . . . . . . . . . . . . . . . . . . . . . . . . . . . Weapon 322 | 2 5 . . 2 17 18 1 17 18 12 . 15 6 8 20 24 5 10 6 7 3 . 8 20 6 18 20 13 . 13 7 21 Energy Gun 61 | . . . . . 11 6 . . 4 5 . . . . . . . . . . . . . . . 5 10 5 . 5 3 7 Energy Cannon 82 | . . . . . 2 1 . 1 3 1 . 8 4 4 11 14 3 4 3 . . . 2 6 . 1 6 2 . 1 . 5 Ballistic Gun 34 | 2 . . . 2 4 6 1 8 3 . . . . . . . . . . . . . . 5 . 3 . . . . . . Ballistic Cannon 31 | . 3 . . . . . . . . 1 . 4 . . . 1 . . . 6 2 . 4 4 5 . . . . 1 . . Launcher 26 | . . . . . . 3 . 4 2 1 . 1 . . 3 2 . . 1 1 . . . 1 . . . 2 . 1 . 4 Special Weapon 80 | . 2 . . . . . . 3 1 4 . 2 2 4 6 7 2 6 2 . 1 . 2 4 1 9 4 4 . 5 4 5 Impact Weapon . | . . . . . . . . . . . . . . . . . . . . . . . . . . . . . . . . . Slashing Weapon . | . . . . . . . . . . . . . . . . . . . . . . . . . . . . . . . . . Piercing Weapon . | . . . . . . . . . . . . . . . . . . . . . . . . . . . . . . . . . Special Melee Weapon 8 | . . . . . . 2 . 1 5 . . . . . . . . . . . . . . . . . . . . . . . Unidentified Prototypes 25 | . . . . . 5 . . . 1 . . . 1 . 3 . 5 . 2 . 2 . . 1 3 . 1 . . . 1 . Corrupted Parts 6 | . . . . . . . . . . . . . . . . . . . . . . . . 2 . . . . . . 4 . System Corruption 24 | . . . . . . . . . . . . . . . . . . . . . . . . 7 . . . . . . 17 . Parts Lost 118 | . . . . 3 1 12 . . 1 4 . 8 . . 10 . . . . 4 . . 10 7 2 6 2 2 . 1 . 45 Power 10 | . . . . . . 2 . . . 1 . . . . 1 . . . . . . . . . . . . 1 . . . 5 Propulsion 39 | . . . . 1 . 7 . . 1 3 . 4 . . 3 . . . . . . . 2 3 1 4 . . . . . 10 Utility 45 | . . . . . 1 1 . . . . . 4 . . 5 . . . . 1 . . 5 2 . 2 1 . . 1 . 22 Weapon 24 | . . . . 2 . 2 . . . . . . . . 1 . . . . 3 . . 3 2 1 . 1 1 . . . 8 Highest Loss Streak 17 | . . . . 3 1 5 . . 1 3 . 4 . . 6 . . . . 3 . . 3 6 2 2 1 2 . 1 . 17 To Critical Strikes 1 | . . . . . . . . . . . . . . . . . . . . . . . 1 . . . . . . . . . Average Slot Usage (%) 88 | . 99 100 100 95 97 78 90 89 91 98 92 84 69 73 79 89 88 85 84 82 84 83 80 83 81 87 98 99 100 100 99 95 Engine 4 | . 14 14 14 14 9 5 9 9 7 7 7 6 6 6 2 . . . . . . . . 3 3 1 . . . . . . Reactor 3 | . . . . . . . . . . . . . . . . 9 10 10 10 10 10 10 10 6 4 6 8 7 8 8 8 7 Treads 15 | . 27 28 28 24 33 9 2 36 30 20 . 8 20 20 12 11 20 16 15 15 15 15 15 22 20 4 . . . . . . Leg 8 | . . . . . . 2 31 . 5 14 38 16 . . 7 11 . . . . . . . . . 17 26 26 24 24 24 23 Device 8 | . 10 14 11 . . . . 1 3 7 7 8 6 10 16 15 16 13 11 10 10 9 13 14 7 . 14 11 12 14 14 20 Storage 6 | . 14 14 14 14 9 9 9 9 7 7 7 7 6 6 5 5 5 5 5 5 5 5 5 5 4 4 4 4 4 4 4 4 Processor 7 | . . . . . 17 18 5 . . . . . . . 1 5 8 11 15 15 15 15 10 10 18 13 8 8 12 12 12 5 Hackware 4 | . . . . . . 2 . . 4 . . 3 2 2 1 2 5 5 3 5 5 5 5 5 5 15 14 17 20 20 21 13 Protection 8 | . 3 . 2 14 9 6 15 15 14 21 23 16 13 13 9 9 4 5 5 4 5 5 5 4 4 4 4 4 4 1 . 6 Energy Gun 3 | . . . . . 11 8 . . 3 4 . . . . . . . . . . . . . . . 2 15 14 12 9 7 9 Energy Cannon 4 | . . . . . . 1 . . 4 6 . 9 10 12 10 9 14 13 12 6 . . 5 3 1 . . 2 4 5 8 3 Ballistic Gun 4 | . 16 14 14 23 5 6 18 15 4 . . . . . . . . . . . . . . 2 . . . . . . . . Ballistic Cannon 2 | . 10 14 14 4 . . . . . . 7 1 . . . . . . . 7 13 15 7 1 7 7 . . . . . . Peak Build Rating 202 | 7 11 10 12 13 30 36 36 46 46 58 58 72 88 93 107 128 141 144 153 153 151 150 156 154 138 152 173 172 180 188 191 202 Average Rating 89 | 5 9 10 10 11 25 28 30 33 38 47 58 56 84 90 94 118 135 140 141 144 149 149 150 118 130 137 168 169 179 184 186 186 On Entrance 94 | . 7 10 10 12 13 30 26 32 35 46 58 58 71 88 93 76 118 137 144 153 141 150 150 154 118 134 149 169 169 180 188 183 Naked Turns . | . . . . . . . . . . . . . . . . . . . . . . . . . . . . . . . . . Heaviest Build 189 | 15 37 33 37 37 103 104 117 134 148 152 152 162 148 145 164 162 181 181 167 166 161 161 171 171 169 173 157 155 157 162 161 189 Greatest Support 235 | 40 40 40 40 40 80 80 80 80 80 80 62 170 225 225 225 201 201 225 225 225 235 235 235 225 136 155 158 163 163 166 171 180 Greatest Overweight (x) 29 | . 1 . . 1 1 29 3 1 1 12 2 22 . . 6 1 . . 1 . . . . 2 2 6 1 . . . . 10 Average Overweight (x) . | . . . . . . 3 2 1 1 1 2 1 . . . . . . . . . . . . 1 1 . . . . . . Largest Inventory Capacity 25 | 8 15 15 15 15 25 25 25 25 25 25 25 25 25 25 25 25 25 25 25 25 25 25 25 25 25 25 25 25 25 25 25 25 Average Capacity 23 | 7 14 15 15 15 19 25 25 25 25 25 25 25 25 25 25 25 25 25 25 25 25 25 25 25 25 25 25 25 25 25 25 24 Most Carried 25 | 4 15 15 15 15 25 25 25 25 25 25 25 25 25 25 25 25 25 25 25 25 25 25 25 25 25 25 25 25 24 25 25 25 Average Carried 23 | 3 13 15 14 14 19 24 24 24 24 24 25 24 24 25 24 24 24 24 24 24 25 24 22 23 24 24 24 24 23 24 25 23 Final Capacity 25 | 8 15 15 15 15 25 25 25 25 25 25 25 25 25 25 25 25 25 25 25 25 25 25 25 25 25 25 25 25 25 25 25 5 Final Carried 25 | 4 15 15 15 14 25 25 25 25 25 25 25 25 25 25 25 25 24 25 25 25 25 25 25 25 25 25 25 25 23 25 25 5 Class Distribution -------------------- 19% | Scavenger-Mutant 19% | Scavenger-Gunner 18% | Mutant 17% | Bothacker-Mutant 15% | Botlord-Gunner 4% | Botlord-Mutant Dominant Class ---------------- Mutant | -10/Materials Mutant | -10/Mines Mutant | -10/Exiles Mutant | -9/Mines Scavenger-Mutant | -8/Materials Mutant | -8/Garrison Scavenger-Mutant | -8/Materials Scavenger-Mutant | -8/Garrison Scavenger-Mutant | -7/Factory Bothacker-Mutant | -7/Garrison Bothacker-Mutant | -7/Factory Bothacker-Mutant | -7/Garrison Bothacker-Mutant | -6/Factory Bothacker-Mutant | -6/Garrison Scavenger-Mutant | -5/Factory Botlord-Mutant | -5/Garrison Botlord-Gunner | -4/Factory Scavenger-Gunner | -4/Garrison Scavenger-Gunner | -4/Factory Scavenger-Gunner | -4/Extension Scavenger-Gunner | -4/Cetus Scavenger-Gunner | -4/Archives Scavenger-Gunner | -4/Hub_04(d) Scavenger-Gunner | -4/Garrison Scavenger-Gunner | -3/Research Botlord-Gunner | -3/Garrison Botlord-Gunner | -2/Research Botlord-Gunner | -2/Garrison Botlord-Gunner | -1/Access Botlord-Gunner | -1/Garrison Botlord-Gunner | -1/Access Botlord-Tank | -1/Command Resources | -11 -10 -10 -10 -9 -8 -8 -8 -8 -7 -7 -7 -7 -6 -6 -5 -5 -4 -4 -4 -4 -4 -4 -4 -4 -3 -3 -2 -2 -1 -1 -1 -1 ----------- Run | Yrd Mat Min Exi Min Mat Gar Mat Gar Fac Gar Fac Gar Fac Gar Fac Gar Fac Gar Fac Ext Cet Arc Hub Gar Res Gar Res Gar Acc Gar Acc Com Matter Collected 18844 | 324 782 33 . 247 684 982 467 854 736 280 . 1310 . 245 1043 1050 271 621 304 563 305 276 1072 1420 929 1176 669 667 . 581 367 586 Remotely 1645 | . . . . 171 . . . 76 57 . . 103 . 35 221 . . . . . . . . . 494 125 . 68 . 295 . . Salvage Created 28647 | 191 889 33 . 282 1433 1097 923 473 797 720 . 1830 . 845 2439 472 551 993 493 1693 242 228 4354 1683 675 393 1682 680 . 712 454 1390 Parts 1121 | 17 66 3 . 12 70 44 48 31 31 19 . 69 . 32 108 22 20 28 18 69 6 14 111 36 28 20 50 28 . 36 13 72 Haulers Intercepted 11 | . 2 . . . 2 . 2 . . . . . . . 2 . . . 1 . . . 1 . . . . . . . 1 . Recyclers Shooed 17 | . 1 . . 1 1 . 1 . 1 . . . . . 5 . . . 1 2 . . . . . . 4 . . . . . Parts Field Recycled . | . . . . . . . . . . . . . . . . . . . . . . . . . . . . . . . . . Retrieved Matter . | . . . . . . . . . . . . . . . . . . . . . . . . . . . . . . . . . Parts Self-Destructed . | . . . . . . . . . . . . . . . . . . . . . . . . . . . . . . . . . Prevented . | . . . . . . . . . . . . . . . . . . . . . . . . . . . . . . . . . Kills | -11 -10 -10 -10 -9 -8 -8 -8 -8 -7 -7 -7 -7 -6 -6 -5 -5 -4 -4 -4 -4 -4 -4 -4 -4 -3 -3 -2 -2 -1 -1 -1 -1 ------- Run | Yrd Mat Min Exi Min Mat Gar Mat Gar Fac Gar Fac Gar Fac Gar Fac Gar Fac Gar Fac Ext Cet Arc Hub Gar Res Gar Res Gar Acc Gar Acc Com Combat Hostiles Destroyed 439 | . 15 3 . 6 16 27 14 22 10 14 . 34 . 15 43 15 10 14 3 20 4 2 46 31 9 10 9 15 . 16 4 12 Guns 100 | . 11 3 . 2 12 10 14 6 4 11 . . . . . . . . . . . . . . . 1 8 5 . 3 . 10 Cannons 165 | . 4 . . 4 . . . 1 2 2 . 20 . 15 27 4 8 9 3 17 4 2 11 6 8 8 . 1 . 4 3 2 AOE 105 | . . . . . 3 14 . 15 4 . . 12 . . 12 9 2 . . . . . 10 8 . . . 7 . 9 . . Classes Destroyed 22 | 2 7 . . 2 3 1 . . . . . 1 . . 1 1 . 2 . . . . 2 . . . . . . . . . Worker 30 | . 5 . . . 1 . 1 . 2 . . . . . 2 . . . . . . . 17 . 1 . 1 . . . . . Builder 15 | . 2 . . . 2 . . . . . . . . . 3 . 1 . 1 2 . . 2 . 2 . . . . . . . Tunneler 10 | 5 3 . . . . . . . . . . . . . 1 . . . . 1 . . . . . . . . . . . . Hauler 11 | . 2 . . . 2 . 2 . . . . . . . 2 . . . 1 . . . 1 . . . . . . . 1 . Recycler 36 | 1 3 . . 1 3 . 2 . 5 . . . . . 1 . . . 2 3 . . 4 . 1 . 7 . . . . 3 Mechanic 2 | . 1 . . . . . . . . . . . . . . . . . . . . . 1 . . . . . . . . . Operator 7 | . . . . . 3 . . . . . . . . . 1 . . . . . . 2 . . . . 1 . . . . . Watcher 23 | . 3 . . . 3 . . . 2 . . 1 . . 3 . . . . . . . 5 . 1 . 1 . . . 2 2 Swarmer 96 | . 7 3 . . . . . 12 4 . . 12 . . 12 9 . 1 . 3 . . 4 9 . 4 1 7 . 8 . . Cutter 4 | . . . . . . . . . . . . 2 . . . . . . . . . . . . . 2 . . . . . . Saboteur 3 | . . . . . . . . . . . . . . . 1 . 1 . . . . . 1 . . . . . . . . . Grunt 165 | . 8 . . 4 11 20 7 7 5 11 . 7 . 10 13 4 4 6 . 8 . . 14 14 4 1 2 1 . 4 . . Brawler 9 | . . . . 1 . 1 1 . . . . 2 . . 2 . . . . . . . 1 . . 1 . . . . . . Duelist 15 | . . . . 1 1 . . 2 . . . 1 . 1 2 . 3 . . . . . 2 . . 1 1 . . . . . Protector 3 | . . . . . . . . . . . . . . . . . . . . . . . 3 . . . . . . . . . Sentry 34 | . . . . . 2 1 5 . . . . 3 . 1 1 1 . 2 . 5 . 2 7 2 . . 1 . . 1 . . Hunter 33 | . . . . . 2 2 1 1 . . . 2 . . 5 . 2 . . 1 . . 2 4 3 . . 2 . 3 . 3 Programmer 57 | . . . . . . 3 . . 1 3 . 5 . 3 7 . . 3 3 3 . . 3 1 1 1 3 5 . . 4 8 Heavy 1 | . . . . . . . . . . . . . . . . . . . . . . . 1 . . . . . . . . . Behemoth 5 | . . . . . . . . . . . . . . . . . . 1 . . . . . 1 1 . 1 . . . . 1 Cetus Guard 4 | . . . . . . . . . . . . . . . . . . . . . 4 . . . . . . . . . . . Lightning 9 | . . . . . . . . . . . . . . . . . . . . . . . 9 . . . . . . . . . Striker 1 | . . . . . . . . . . . . . . . . 1 . . . . . . . . . . . . . . . . Executioner 1 | . . . . . . . . . . . . . . . . . . 1 . . . . . . . . . . . . . . Best Kill Streak 17 | 3 4 3 . 5 4 11 8 7 6 3 . 13 . 4 13 9 5 3 3 6 3 2 17 10 5 4 8 5 . 9 3 6 Combat Bots Only 12 | . 2 3 . 3 3 11 6 7 5 3 . 12 . 4 11 9 5 3 2 6 3 2 9 10 3 4 3 5 . 9 3 3 Max Kills in Single Turn 15 | 1 2 1 . 1 2 3 2 3 3 1 . 3 . 1 6 4 2 1 1 2 1 1 15 4 2 2 2 3 . 4 2 2 Gunslinging 2 | . . . . . . . . . . . . . . . . . . . . . . . . . . . . 2 . . . . Exploded 4 | . . . . . 1 3 . 3 3 . . 3 . . 4 4 2 . . . . . 4 4 . . . 2 . 4 . . Melee . | . . . . . . . . . . . . . . . . . . . . . . . . . . . . . . . . . Uniques/NPCs Destroyed . | . . . . . . . . . . . . . . . . . . . . . . . . . . . . . . . . . Combat | -11 -10 -10 -10 -9 -8 -8 -8 -8 -7 -7 -7 -7 -6 -6 -5 -5 -4 -4 -4 -4 -4 -4 -4 -4 -3 -3 -2 -2 -1 -1 -1 -1 -------- Run | Yrd Mat Min Exi Min Mat Gar Mat Gar Fac Gar Fac Gar Fac Gar Fac Gar Fac Gar Fac Ext Cet Arc Hub Gar Res Gar Res Gar Acc Gar Acc Com Hostile Shots Fired 2793 | . 57 9 4 44 48 134 54 40 37 85 . 280 17 126 357 53 80 70 16 113 9 14 200 172 48 63 66 80 . 54 12 451 Missed 766 | . 17 3 . 6 11 35 19 13 9 19 . 93 5 33 73 10 25 9 8 30 7 7 62 40 17 22 17 24 . 17 3 132 Damage Taken 37552 | . 469 44 58 542 734 1717 502 399 445 1183 72 1895 182 720 4266 697 801 848 128 1586 75 132 3333 2079 893 1128 1299 1048 . 563 204 9510 Core 3872 | . 143 . . 94 184 329 18 . 29 91 24 150 . 58 224 74 80 25 13 78 . . 89 155 61 230 23 91 . 35 24 1550 Absorbed by Shields 6845 | . . . . . . 8 . . . . . 241 . 474 1372 524 286 481 30 569 27 49 656 1172 . 134 . 98 . 213 . 511 Reduced by Siege Mode 509 | . . . . . . . . . . . . 7 . 70 105 32 . 23 . 11 . . 131 130 . . . . . . . . Redirected to Shielding 338 | . . . . . . . . . . . . . . . 130 . . . . . . . 84 19 . . . . . . . 105 Ignored by Resistances 2090 | . . . . . . . . . . . . 221 8 121 476 . . 57 . . . . . 127 . . 31 . . . 26 1023 Regen/Repaired (Parts) 3175 | . 105 . . . . . 46 . . . . . . . 625 . . . 876 329 . . . . . . 407 . . . . 787 Core Remaining (%) 62 | 100 . . . 5 . . . 3 . . . 58 . 93 . 70 . . . . . . . 61 . 77 . 92 . . . . Volleys Fired 1558 | 9 105 5 . 26 74 72 54 47 41 66 . 112 13 40 184 29 30 62 21 61 9 11 94 78 25 60 64 27 . 48 27 64 Largest 4 | 2 2 2 . 2 2 2 2 2 2 2 . 2 2 2 2 2 3 3 3 3 3 3 3 2 2 4 4 4 . 4 4 4 Hottest 370 | 40 100 55 . 55 111 100 53 250 141 141 . 170 170 175 180 240 360 360 360 360 171 171 370 250 158 260 260 315 . 370 370 370 Shots Fired 2930 | 18 175 10 . 51 127 123 108 72 65 111 1 188 18 75 321 53 71 106 46 158 27 33 157 101 48 97 177 63 . 90 57 183 Gun 1004 | 18 108 5 . 34 124 93 108 51 39 46 . . . . . . . . . . . . . 8 . 17 151 44 . 41 15 102 Cannon 1645 | . 62 5 . 17 3 7 . 2 22 57 1 183 14 72 307 47 66 74 42 156 27 33 155 79 46 34 12 4 . 23 32 63 Launcher 83 | . . . . . . 23 . 19 4 1 . 5 . . 7 3 . . . 2 . . . 3 . . . 4 . 4 . 8 Special 198 | . 5 . . . . . . . . 7 . . 4 3 7 3 5 32 4 . . . 2 11 2 46 14 11 . 22 10 10 Kinetic 833 | 18 170 10 . 51 60 34 108 51 6 . 1 28 . . . . . . . 52 27 33 83 30 34 37 . . . . . . Thermal 1665 | . 5 . . . 4 7 . 2 55 103 . 155 14 72 307 47 66 74 42 104 . . 72 29 . 20 163 48 . 64 47 165 Explosive 78 | . . . . . . 23 . 19 4 1 . 5 . . 7 3 . . . 2 . . . 3 . . . 4 . 4 . 3 Electromagnetic 167 | . . . . . 63 59 . . . . . . . . . . . . . . . . . 28 12 . . . . . . 5 Robot Hit Streak 37 | 6 11 3 . 10 17 9 17 4 16 19 . 29 9 12 14 14 7 24 37 23 6 5 25 28 29 28 30 28 . 16 17 22 Robot Miss Streak 8 | 1 4 2 . 5 4 5 4 4 5 3 . 5 3 2 4 3 7 2 1 8 2 4 4 2 2 2 1 1 . 4 1 2 Penetration Max 1 | . . . . . . . 1 . . . . 1 . . . . . . . 1 1 . 1 1 . 1 . . . . . . Secondary Targets 10 | . . . . . 1 2 . . . . . . . . . . . . . . . . . . . . 3 2 . . . 2 Max Gunslinging Chain 2 | . . . . . 1 1 . . . . . . . . . . . . . . . . . . . . 1 2 . . . 1 Shots Hit Robots 1930 | 12 104 4 . 31 94 83 79 23 57 67 . 142 10 56 186 38 32 78 26 99 14 17 92 83 35 57 134 52 . 58 39 128 Core Hits 1025 | 7 44 3 . 13 60 65 45 40 24 26 . 70 1 25 81 19 17 14 4 38 7 7 149 66 14 11 44 24 . 38 7 62 Critical Kills 40 | . 1 . . . . . . . . 1 . 2 . . 1 2 . 4 1 9 4 3 11 . . . . . . . 1 . Critical Parts Destroyed 39 | 1 1 . . 1 . . . 1 . . . . . . . . . . . 10 4 5 14 2 . . . . . . . . Critical Strikes 110 | 1 4 . . 1 . . . 1 2 5 . 3 . . 1 2 . 4 1 22 9 12 29 9 2 1 . . . . 1 . Burn 6 | . . . . . . . . . 2 4 . . . . . . . . . . . . . . . . . . . . . . Meltdown 16 | . . . . . . . . . . 1 . 2 . . 1 2 . 4 1 3 . . 1 . . . . . . . 1 . Destroy 77 | 1 2 . . 1 . . . 1 . . . . . . . . . . . 19 9 12 28 4 . . . . . . . . Blast 5 | . 2 . . . . . . . . . . 1 . . . . . . . . . . . . 1 1 . . . . . . Corrupt 6 | . . . . . . . . . . . . . . . . . . . . . . . . 5 1 . . . . . . . Melee Attacks 25 | . . . . . . 7 . 4 14 . . . . . . . . . . . . . . . . . . . . . . . Impact . | . . . . . . . . . . . . . . . . . . . . . . . . . . . . . . . . . Slashing . | . . . . . . . . . . . . . . . . . . . . . . . . . . . . . . . . . Piercing . | . . . . . . . . . . . . . . . . . . . . . . . . . . . . . . . . . Sneak Attacks 9 | . . . . . . . . 1 8 . . . . . . . . . . . . . . . . . . . . . . . Combat Hostiles 2 | . . . . . . . . 1 1 . . . . . . . . . . . . . . . . . . . . . . . Follow-up Attacks . | . . . . . . . . . . . . . . . . . . . . . . . . . . . . . . . . . Damage Inflicted 73735 | 161 1482 58 . 467 2170 3447 1578 1868 1291 1310 . 6590 187 1619 7360 2232 1807 2506 1144 4070 449 486 8034 4340 2230 1209 3897 2368 . 2674 1372 5329 Guns 17347 | 161 856 58 . 262 1774 1393 1569 353 513 695 . . . . . . . . . . . . . 103 . 441 3897 1344 . 799 413 2716 Cannons 37369 | . 622 . . 205 . 25 . 38 394 615 . 5488 187 1619 5436 1540 1297 2506 1096 3794 449 469 2506 2654 2194 753 . 190 . 384 959 1949 Explosions 18729 | . . . . . 396 2029 . 1477 376 . . 1087 . . 1857 692 510 . . 276 . . 5482 1583 . . . 834 . 1491 . 639 Melee . | . . . . . . . . . . . . . . . . . . . . . . . . . . . . . . . . . Ramming 271 | . . . . . . . 9 . 8 . . 15 . . 67 . . . 48 . . 17 46 . 36 . . . . . . 25 Kinetic 13108 | 161 1478 58 . 467 638 491 1569 353 64 . . 1544 . . . . . . . 618 449 469 1119 1111 1698 821 . . . . . . Thermal 44500 | . 4 . . . 329 258 . 115 843 1310 . 3944 187 1619 5915 1540 1807 2506 1096 3219 . . 4883 1886 . 388 3897 1534 . 1183 1372 4665 Explosive 10081 | . . . . . . 1796 . 1400 376 . . 1087 . . 1378 692 . . . 233 . . . 374 . . . 834 . 1491 . 420 Electromagnetic 5775 | . . . . . 1203 902 . . . . . . . . . . . . . . . . 1986 969 496 . . . . . . 219 Impact . | . . . . . . . . . . . . . . . . . . . . . . . . . . . . . . . . . Slashing . | . . . . . . . . . . . . . . . . . . . . . . . . . . . . . . . . . Piercing . | . . . . . . . . . . . . . . . . . . . . . . . . . . . . . . . . . Highest Corruption 34 | . . . 1 1 . 1 1 1 . 7 7 13 . . 10 10 1 7 3 3 3 3 11 16 . 7 2 4 . . 17 34 Average Corruption 5 | . . . 1 1 . 1 1 1 . 6 7 11 . . 6 10 1 2 3 3 3 2 4 12 . 2 1 3 . . 6 6 Corruption Purged 32 | . . . . . . . . . . . . . . . . . . 4 . . . 3 1 5 . . 2 . . . 17 . Corruption Blocked . | . . . . . . . . . . . . . . . . . . . . . . . . . . . . . . . . . Effects 642 | . . . . 2 . 11 12 17 . 24 2 110 . . 64 76 8 26 28 35 10 5 31 74 . 37 9 12 . . 19 30 Message Errors 134 | . . . . 1 . 2 1 4 . 5 1 16 . . 8 19 1 4 6 9 3 1 9 21 . 5 4 3 . . 4 7 Matter Fused 159 | . . . . . . 2 1 5 . 3 . 36 . . 20 25 2 9 6 6 1 2 3 17 . 7 1 5 . . 6 2 Heat Flow Errors 82 | . . . . . . 2 1 2 . 4 . 21 . . 7 7 . 3 3 2 2 . 6 9 . 3 . . . . 4 6 Energy Discharges 66 | . . . . . . 1 4 1 . 4 . 7 . . 6 6 2 5 4 5 1 . 3 6 . 6 . . . . 2 3 Parts Rejected 4 | . . . . . . . . . . . . . . . . . . . . . . . . 1 . . 2 . . . . 1 Parts Fused 6 | . . . . . . . . . . . . 2 . . 1 . . 1 . . . . . . . . . 1 . . . 1 Data Loss (minor) 76 | . . . . . . 2 3 1 . 3 . 13 . . 9 9 . 2 4 4 2 1 3 7 . 9 . 1 . . 1 2 Data Loss (major) 36 | . . . . . . . . 3 . 1 . 7 . . . 4 . . 2 3 1 1 3 3 . 2 1 1 . . . 4 Misfires 38 | . . . . . . 1 1 1 . 1 1 4 . . 5 4 . . 2 4 . . 4 5 . 3 . . . . 1 1 Alerts 15 | . . . . . . . . . . 1 . . . . 2 . 1 2 . 2 . . . 4 . 2 . 1 . . . . Misdirections 1 | . . . . . . . . . . . . 1 . . . . . . . . . . . . . . . . . . . . Weapon Failures 25 | . . . . 1 . 1 1 . . 2 . 3 . . 6 2 2 . 1 . . . . 1 . . 1 . . . 1 3 Overload Shots . | . . . . . . . . . . . . . . . . . . . . . . . . . . . . . . . . . Overflow Damage 2379 | . . . . 2 . 53 . 24 15 15 . 484 . 19 235 61 106 130 177 146 . 5 97 126 236 49 . 114 . 112 126 47 Projectiles 1660 | . . . . 2 . . . . . 15 . 372 . 19 183 22 8 130 177 146 . 5 44 79 236 49 . . . . 126 47 Explosions 718 | . . . . . . 53 . 24 15 . . 112 . . 51 39 98 . . . . . 53 47 . . . 114 . 112 . . Melee 1 | . . . . . . . . . . . . . . . 1 . . . . . . . . . . . . . . . . . Knockbacks 38 | . 11 . . 2 . . . . . . . 3 . . . . . . . 2 1 2 8 1 5 2 . . . . . 1 Impact 1 | . . . . . . . . . . . . . . . . . . . . . . . . . . . . . . . . 1 Kinetic 36 | . 10 . . 2 . . . . . . . 3 . . . . . . . 2 1 2 8 1 5 2 . . . . . . Secondary 1 | . 1 . . . . . . . . . . . . . . . . . . . . . . . . . . . . . . . Self-Inflicted Damage 1592 | . . . . . 172 154 . 40 . . 73 . . . 392 . 81 . . . . . 680 . . . . . . . . . Shots 50 | . . . . . 4 3 . 1 . . 1 . . . 5 . 1 . . . . . 35 . . . . . . . . . Rammed 9 | . . . . . . . . . 1 . . . . . 2 . . . 3 . . . 2 . 1 . . . . . . . Targets Rammed 20 | . . . . . . . 2 . 1 . . 2 . . 3 . . . 3 . . 1 3 . 2 . . . . . . 3 Kicked 8 | . . . . . . . 2 . . . . 2 . . 1 . . . . . . . . . . . . . . . . 3 Crushed 3 | . . . . . . . . . . . . . . . . . . . . . . 1 1 . 1 . . . . . . . Highest Temperature 476 | . 54 . . 336 234 348 120 440 90 189 . 384 126 339 347 299 374 435 270 423 233 51 343 336 240 433 270 78 . 334 365 476 Average Temperature 93 | . 18 . . 170 50 79 38 61 40 46 . 111 56 132 95 111 171 161 106 98 45 19 103 114 71 85 47 22 . 122 102 159 Received Heat Transfer 5408 | . 228 . . 192 315 805 189 126 207 387 . 275 127 345 554 99 77 240 9 247 . 6 305 193 27 55 153 61 . 13 . 173 Effects 37 | . . . . 1 . 2 . 1 . . . 4 . 2 5 3 3 9 . . . . 2 . . 1 . . . . . 4 Shutdowns 7 | . . . . . . . . 1 . . . 1 . . . . 1 2 . . . . 1 . . 1 . . . . . . Energy Bleed 6 | . . . . 1 . 1 . . . . . . . 1 1 . 2 . . . . . . . . . . . . . . . Interference 18 | . . . . . . . . . . . . 3 . 1 4 3 . 7 . . . . . . . . . . . . . . Matter Decay 1 | . . . . . . 1 . . . . . . . . . . . . . . . . . . . . . . . . . . Short Circuit 1 | . . . . . . . . . . . . . . . . . . . . . . . 1 . . . . . . . . . Damage (major) 4 | . . . . . . . . . . . . . . . . . . . . . . . . . . . . . . . . 4 Siege Activations 16 | . . . . . . . . . . . . 1 . 3 3 1 . 2 . 1 1 . 3 1 . . . . . . . . Total Turns 383 | . . . . . . . . . . . . 39 . 101 58 33 . 28 . 27 2 . 57 38 . . . . . . . . Longest Duration 66 | . . . . . . . . . . . . 39 . 66 22 33 . 16 . 27 2 . 44 38 . . . . . . . . Robots Corrupted 15 | . . . . . 1 4 . . . . . . . . 1 . . . . . . . 1 6 2 . . . . . . . Combat Hostiles 11 | . . . . . 1 3 . . . . . . . . . . . . . . . . . 6 1 . . . . . . . Parts Fried 36 | . . . . . 6 7 . . 3 . . . . . 3 . . . . . . . 8 6 3 . . . . . . . Impact Corruptions 1 | . . . . . . . . . . . . . . . 1 . . . . . . . . . . . . . . . . . Robots Melted 63 | . . . . . . . . . . 1 . 2 . . 5 2 . 5 1 3 . . 28 11 . 1 1 2 . . 1 . Combat Hostiles 58 | . . . . . . . . . . 1 . 2 . . 4 2 . 5 . 3 . . 25 11 . 1 1 2 . . 1 . Parts Melted 276 | . . . . . . . . . 4 9 . 10 . 2 23 5 5 9 2 12 . . 105 38 . . 17 14 . 3 9 9 Heat Transferred 67923 | . 25 . . . 350 262 . 520 1691 2889 . 4548 222 2035 6999 1332 1597 2052 851 2732 . . 18398 8530 . 481 4551 1517 . 1295 1184 3862 Parts Sabotaged . | . . . . . . . . . . . . . . . . . . . . . . . . . . . . . . . . . Parts Stolen . | . . . . . . . . . . . . . . . . . . . . . . . . . . . . . . . . . Parts Stripped . | . . . . . . . . . . . . . . . . . . . . . . . . . . . . . . . . . Power Chain Reactions 8 | . . . . . 5 3 . . . . . . . . . . . . . . . . . . . . . . . . . . Alert | -11 -10 -10 -10 -9 -8 -8 -8 -8 -7 -7 -7 -7 -6 -6 -5 -5 -4 -4 -4 -4 -4 -4 -4 -4 -3 -3 -2 -2 -1 -1 -1 -1 ------- Run | Yrd Mat Min Exi Min Mat Gar Mat Gar Fac Gar Fac Gar Fac Gar Fac Gar Fac Gar Fac Ext Cet Arc Hub Gar Res Gar Res Gar Acc Gar Acc Com Peak Influence 2363 | 30 297 147 . 130 368 1653 871 1776 934 1014 568 2363 1286 1250 1569 2155 1261 1304 714 523 378 201 1281 1386 1237 1377 838 700 417 837 552 225 Initial 1240 | . 19 77 . . 50 239 805 454 932 410 532 397 1240 765 655 1075 1131 882 684 188 239 71 . 837 779 702 731 416 417 333 501 163 Average 750 | 15 184 132 . 106 94 925 723 1104 719 714 534 1248 1229 1073 953 1577 1168 1017 533 328 278 176 324 1155 1049 835 706 622 417 605 430 94 Maximum Alert Level 5 | . 1 . . . 1 5 3 5 3 3 2 5 4 4 4 5 4 4 3 2 1 1 4 4 4 4 3 3 2 3 2 1 Low Security (%) 15 | 100 50 100 . 100 89 . . . . . . . . . . . . . . 8 25 86 59 . . . . . . . . 82 Level 1 11 | . 49 . . . 10 13 . . . . . 3 . . . . . . 8 65 74 13 10 . . . . . . 16 56 17 Level 2 22 | . . . . . . 3 43 27 49 53 100 10 . . 50 . . . 76 26 . . 8 . . 26 45 98 100 63 43 . Level 3 27 | . . . . . . 54 56 20 50 46 . 27 21 39 11 17 4 70 14 . . . 13 34 78 57 54 1 . 19 . . Level 4 19 | . . . . . . 25 . 42 . . . 31 78 60 37 36 95 29 . . . . 7 65 21 15 . . . . . . Level 5 4 | . . . . . . 2 . 9 . . . 26 . . . 46 . . . . . . . . . . . . . . . . High Security . | . . . . . . . . . . . . . . . . . . . . . . . . . . . . . . . . . Max Security . | . . . . . . . . . . . . . . . . . . . . . . . . . . . . . . . . . Squads Dispatched 73 | . 3 . . . 5 . 3 . 2 . . . 1 . 18 . 3 . 4 3 . . 8 . 13 . 2 . . . 4 4 Investigation 15 | . 3 . . . 3 . . . . . . . . . 1 . . . . 1 . . . . 6 . . . . . . 1 Extermination 14 | . . . . . . . . . 1 . . . . . 4 . . . 1 . . . 2 . . . 2 . . . 2 2 Reinforcement 26 | . . . . . 2 . 1 . 1 . . . . . 5 . . . 3 2 . . 2 . 7 . . . . . 2 1 Assault 13 | . . . . . . . . . . . . . 1 . 6 . 3 . . . . . 3 . . . . . . . . . Garrison 5 | . . . . . . . 2 . . . . . . . 2 . . . . . . . 1 . . . . . . . . . Intercept . | . . . . . . . . . . . . . . . . . . . . . . . . . . . . . . . . . Searches Triggered . | . . . . . . . . . . . . . . . . . . . . . . . . . . . . . . . . . Construction Impeded 8 | . . . . . . . . . . . . . . . 3 . . . 1 1 . . . . 3 . . . . . . . Haulers Reinforced 1 | . . . . . . . . . . . . . . . . . . . . . . . . . 1 . . . . . . . Active Scanning Responses . | . . . . . . . . . . . . . . . . . . . . . . . . . . . . . . . . . Cargo Convoy Interrupts . | . . . . . . . . . . . . . . . . . . . . . . . . . . . . . . . . . Stealth | -11 -10 -10 -10 -9 -8 -8 -8 -8 -7 -7 -7 -7 -6 -6 -5 -5 -4 -4 -4 -4 -4 -4 -4 -4 -3 -3 -2 -2 -1 -1 -1 -1 --------- Run | Yrd Mat Min Exi Min Mat Gar Mat Gar Fac Gar Fac Gar Fac Gar Fac Gar Fac Gar Fac Ext Cet Arc Hub Gar Res Gar Res Gar Acc Gar Acc Com Distress Signals 28 | . 3 . . . 1 . 2 . 1 . . 1 . . 1 . . . 1 5 2 . 1 . 7 . . . . . . 3 Communications Jammed 23 | . . . . . . . . . . . . . . . . . . . . . . . . . . . 16 . . . 6 1 Distress Signals 23 | . . . . . . . . . . . . . . . . . . . . . . . . . . . 16 . . . 6 1 Times Spotted 789 | . 28 3 1 6 24 32 30 26 21 20 . 41 6 15 76 30 15 37 13 44 11 8 58 28 44 43 23 25 . 30 12 39 Peak Tracking Total 13 | . 4 3 3 3 3 6 4 7 4 3 . 9 4 4 9 6 5 5 4 7 5 2 9 5 10 5 3 10 . 13 3 7 Tactical Retreats 33 | . 3 . . . 1 2 . 1 1 1 . 8 . . 4 2 . . 1 6 . . 1 . . . . . . . . 2 Traps | -11 -10 -10 -10 -9 -8 -8 -8 -8 -7 -7 -7 -7 -6 -6 -5 -5 -4 -4 -4 -4 -4 -4 -4 -4 -3 -3 -2 -2 -1 -1 -1 -1 ------- Run | Yrd Mat Min Exi Min Mat Gar Mat Gar Fac Gar Fac Gar Fac Gar Fac Gar Fac Gar Fac Ext Cet Arc Hub Gar Res Gar Res Gar Acc Gar Acc Com Traps Triggered 52 | . 1 . . . . 5 . 4 . 2 . 3 . 1 2 5 3 2 1 1 . . 2 7 1 4 2 2 . 1 1 2 Indirectly . | . . . . . . . . . . . . . . . . . . . . . . . . . . . . . . . . . Trap Hack Attempts . | . . . . . . . . . . . . . . . . . . . . . . . . . . . . . . . . . Triggered . | . . . . . . . . . . . . . . . . . . . . . . . . . . . . . . . . . Disarmed 3 | . . . . . . . . . . . . . . . . . . . . . . . 3 . . . . . . . . . Reprogrammed 6 | . . . . . . . 6 . . . . . . . . . . . . . . . . . . . . . . . . . Reused . | . . . . . . . . . . . . . . . . . . . . . . . . . . . . . . . . . Traps Extracted . | . . . . . . . . . . . . . . . . . . . . . . . . . . . . . . . . . Installed . | . . . . . . . . . . . . . . . . . . . . . . . . . . . . . . . . . Triggered 3 | . . . . . . . . . 1 . . . . . . . . . . . . . 1 . . . . . . . . 1 Objects Rigged 1 | . . . . . . . . . . . . . . . . . . . . . . . 1 . . . . . . . . . Exploded 1 | . . . . . . . . . . . . . . . . . . . . . . . 1 . . . . . . . . . Machines | -11 -10 -10 -10 -9 -8 -8 -8 -8 -7 -7 -7 -7 -6 -6 -5 -5 -4 -4 -4 -4 -4 -4 -4 -4 -3 -3 -2 -2 -1 -1 -1 -1 ---------- Run | Yrd Mat Min Exi Min Mat Gar Mat Gar Fac Gar Fac Gar Fac Gar Fac Gar Fac Gar Fac Ext Cet Arc Hub Gar Res Gar Res Gar Acc Gar Acc Com Machines Disabled 135 | . 3 . . . 3 2 4 8 2 3 1 6 . 3 8 6 6 5 3 3 1 3 36 6 4 6 . 2 . 6 3 2 Max in Single Turn 9 | . 1 . . . 1 1 1 2 1 1 1 1 . 1 3 1 6 1 1 3 1 1 9 1 1 1 . 1 . 1 1 1 Garrison Access 4 | . . . . . . . . . . . . . . . 1 . . . 2 . . . 1 . . . . . . . . . Garrison Relay 33 | . . . . . . . . 3 . 2 . 5 . 2 . 4 . 5 . . . . . 2 . 5 . 2 . 3 . . Phase Generator 1 | . . . . . . . . . . . . . . . . . . . . . . . . . . . . . . . . 1 Network Hub 4 | . . . . . . . . . . . . . . . . . . . . . . . 4 . . . . . . . . . Energy Cycler 2 | . . . . . . . . . . . . . . . . . . . . 2 . . . . . . . . . . . . Machines Repaired . | . . . . . . . . . . . . . . . . . . . . . . . . . . . . . . . . . Machines Dismantled 39 | . . . . . . . . 3 1 2 . 5 . 2 . 4 . 3 . . 1 . . 4 . 5 . 2 . 3 3 1 Machines Sabotaged . | . . . . . . . . . . . . . . . . . . . . . . . . . . . . . . . . . Overloaded Fab Kills . | . . . . . . . . . . . . . . . . . . . . . . . . . . . . . . . . . Hacking | -11 -10 -10 -10 -9 -8 -8 -8 -8 -7 -7 -7 -7 -6 -6 -5 -5 -4 -4 -4 -4 -4 -4 -4 -4 -3 -3 -2 -2 -1 -1 -1 -1 --------- Run | Yrd Mat Min Exi Min Mat Gar Mat Gar Fac Gar Fac Gar Fac Gar Fac Gar Fac Gar Fac Ext Cet Arc Hub Gar Res Gar Res Gar Acc Gar Acc Com Machines Accessed 120 | . 11 . 2 . 8 2 12 2 6 . 1 2 3 1 12 4 4 2 9 6 3 1 10 1 2 2 4 2 1 1 . 6 Terminals 73 | . 8 . . . 2 2 8 2 2 . . 2 1 1 6 4 1 2 3 5 3 . 8 1 1 2 2 2 . 1 . 4 Fabricators 2 | . . . . . . . . . . . . . . . 1 . 1 . . . . . . . . . . . . . . . Repair Stations 14 | . 1 . . . 2 . 1 . . . . . 1 . 3 . . . 3 1 . . . . . . . . . . . 2 Recycling Units 10 | . 2 . . . 2 . 2 . 2 . . . . . . . . . 1 . . . . . . . 1 . . . . . Scanalyzers 4 | . . . . . 1 . . . 1 . . . . . 1 . 1 . . . . . . . . . . . . . . . Garrison Access 14 | . . . . . 1 . 1 . 1 . 1 . 1 . 1 . 1 . 2 . . . 2 . 1 . 1 . 1 . . . Total Hacks 315 | . 39 . 2 . 24 3 37 3 17 . 1 3 5 1 32 7 6 3 21 15 11 3 23 9 5 2 16 8 1 3 . 15 Successful 169 | . 23 . 2 . 13 1 20 2 11 . 1 1 2 1 20 2 2 2 12 12 5 3 15 1 1 2 6 1 1 1 . 6 Failed 145 | . 15 . . . 11 2 17 1 6 . . 2 3 . 12 5 4 1 9 3 6 . 8 8 4 . 10 7 . 2 . 9 Catastrophic 25 | . . . . . 4 . 2 . . . . 1 . . 1 1 . . 3 . 1 . 1 4 . . . 1 . 1 . 5 Database Lockouts 1 | . 1 . . . . . . . . . . . . . . . . . . . . . . . . . . . . . . . Manual 112 | . 25 . 1 . 8 . 23 1 4 . . . . . 11 . 2 . 2 1 . . 14 3 . . 12 2 . 3 . . Terminals 198 | . 30 . . . 6 3 30 3 4 . . 3 3 1 15 7 2 3 5 9 11 . 21 9 4 2 11 8 . 3 . 5 Fabricators 3 | . . . . . . . . . . . . . . . 2 . 1 . . . . . . . . . . . . . . . Repair Stations 52 | . 4 . . . 5 . 2 . . . . . 1 . 11 . . . 13 6 . . . . . . . . . . . 10 Recycling Units 28 | . 5 . . . 7 . 4 . 7 . . . . . . . . . 1 . . . . . . . 4 . . . . . Scanalyzers 15 | . . . . . 5 . . . 5 . . . . . 3 . 2 . . . . . . . . . . . . . . . Garrison Access 14 | . . . . . 1 . 1 . 1 . 1 . 1 . 1 . 1 . 2 . . . 2 . 1 . 1 . 1 . . . Terminal Hacks 52 | . 5 . 2 . 1 1 6 2 1 . . 1 1 1 1 2 . 2 . 5 5 3 5 1 . 2 2 1 . 1 . 1 Record 11 | . . . 1 . . . 1 . . . . . . . . . . . . . 5 3 . . . . 1 . . . . . Part Schematic 1 | . . . . . 1 . . . . . . . . . . . . . . . . . . . . . . . . . . . Robot Analysis 2 | . 1 . . . . . . . 1 . . . . . . . . . . . . . . . . . . . . . . . Prototype ID Bank 3 | . 1 . . . . . 1 . . . . . . . . . . . . 1 . . . . . . . . . . . . Open Door 5 | . . . . . . . . . . . . . . . . . . . . 4 . . . . . 1 . . . . . . Emergency Access Points 8 | . . . . . . 1 . 1 . . . 1 . 1 . 1 . 1 . . . . . 1 . 1 . . . . . . Terminal Index 2 | . 1 . . . . . 1 . . . . . . . . . . . . . . . . . . . . . . . . . Unreport Threat 4 | . . . . . . . 1 . . . . . . . . . . . . . . . 3 . . . . . . . . . Locate Traps 1 | . 1 . . . . . . . . . . . . . . . . . . . . . . . . . . . . . . . Disarm Traps 1 | . . . . . . . . . . . . . . . . . . . . . . . 1 . . . . . . . . . Reprogram Traps 1 | . . . . . . . 1 . . . . . . . . . . . . . . . . . . . . . . . . . Dispatch Records 1 | . 1 . . . . . . . . . . . . . . . . . . . . . . . . . . . . . . . Recall Reinforcements 1 | . . . . . . . . . . . . . . . . . . . . . . . 1 . . . . . . . . . Zone Layout 4 | . . . . . . . 1 . . . . . 1 . 1 . . . . . . . . . . . 1 . . . . . Garrison Registry 2 | . . . . . . . . . . . . . . . . . . . . . . . . . . . . 1 . 1 . . Patrol Navigation 1 | . . . . . . . . . . . . . . . . . . 1 . . . . . . . . . . . . . . Security Stations 2 | . . . . . . . . 1 . . . . . . . 1 . . . . . . . . . . . . . . . . Derelict Proto ID Bank 1 | . . . 1 . . . . . . . . . . . . . . . . . . . . . . . . . . . . . Disengage Seal 1 | . . . . . . . . . . . . . . . . . . . . . . . . . . . . . . . . 1 Fabricator Hacks . | . . . . . . . . . . . . . . . . . . . . . . . . . . . . . . . . . Repair Station Hacks 35 | . 4 . . . 1 . 2 . . . . . . . 8 . . . 9 6 . . . . . . . . . . . 5 Scan Component 19 | . 2 . . . 1 . 1 . . . . . . . 4 . . . 5 3 . . . . . . . . . . . 3 Repair 16 | . 2 . . . . . 1 . . . . . . . 4 . . . 4 3 . . . . . . . . . . . 2 Recycling Unit Hacks 8 | . 1 . . . 1 . 2 . 3 . . . . . . . . . . . . . . . . . 1 . . . . . Process 1 | . . . . . . . . . 1 . . . . . . . . . . . . . . . . . . . . . . . Retrieve Matter 2 | . . . . . . . . . 2 . . . . . . . . . . . . . . . . . . . . . . . Retrieve Components 5 | . 1 . . . 1 . 2 . . . . . . . . . . . . . . . . . . . 1 . . . . . Scanalyzer 12 | . . . . . 5 . . . 4 . . . . . 2 . 1 . . . . . . . . . . . . . . . Insert Component 6 | . . . . . 2 . . . 2 . . . . . 1 . 1 . . . . . . . . . . . . . . . Analyze 6 | . . . . . 3 . . . 2 . . . . . 1 . . . . . . . . . . . . . . . . . Garrison Access Hacks 14 | . . . . . 1 . 1 . 1 . 1 . 1 . 1 . 1 . 2 . . . 2 . 1 . 1 . 1 . . . Unlock Access 12 | . . . . . 1 . 1 . 1 . 1 . 1 . 1 . 1 . . . . . 2 . 1 . 1 . 1 . . . Seal Access 2 | . . . . . . . . . . . . . . . . . . . 2 . . . . . . . . . . . . . Unauthorized Hacks 48 | . 13 . . . 4 . 9 . 2 . . . . . 8 . . . 1 1 . . 8 . . . 2 . . . . . Terminals 42 | . 11 . . . 2 . 9 . . . . . . . 8 . . . 1 1 . . 8 . . . 2 . . . . . Track 2 | . 2 . . . . . . . . . . . . . . . . . . . . . . . . . . . . . . . Assimilate 3 | . 1 . . . . . . . . . . . . . 2 . . . . . . . . . . . . . . . . . Botnet 11 | . 2 . . . 1 . 3 . . . . . . . 1 . . . . 1 . . 2 . . . 1 . . . . . Detonate 1 | . . . . . . . . . . . . . . . . . . . . . . . 1 . . . . . . . . . Operators 2 | . 1 . . . . . 1 . . . . . . . . . . . . . . . . . . . . . . . . . Skim 23 | . 5 . . . 1 . 5 . . . . . . . 5 . . . 1 . . . 5 . . . 1 . . . . . Fabricators . | . . . . . . . . . . . . . . . . . . . . . . . . . . . . . . . . . Repair Stations . | . . . . . . . . . . . . . . . . . . . . . . . . . . . . . . . . . Recycling Units 6 | . 2 . . . 2 . . . 2 . . . . . . . . . . . . . . . . . . . . . . . Reject 1 | . . . . . . . . . 1 . . . . . . . . . . . . . . . . . . . . . . . Recyclers 1 | . . . . . . . . . 1 . . . . . . . . . . . . . . . . . . . . . . . Tunnel 4 | . 2 . . . 2 . . . . . . . . . . . . . . . . . . . . . . . . . . . Scanalyzers . | . . . . . . . . . . . . . . . . . . . . . . . . . . . . . . . . . Garrison Access . | . . . . . . . . . . . . . . . . . . . . . . . . . . . . . . . . . Data Cores Recovered 3 | . . . . . 1 . . . . . . . . . . . 1 . . . . . . . . . 1 . . . . . Used 1 | . . . . . . . . . . . . . . . . . 1 . . . . . . . . . . . . . . . Hacking Detections 90 | . 9 . . . 7 2 10 1 5 . . 1 2 . 11 2 4 . 7 5 2 . 8 1 1 . 4 2 . 1 . 5 Full Trace Events 6 | . . . . . 1 . . . . . . . . . 1 1 . . . 1 . . . . 1 . . . . . . 1 Feedback Events 1 | . . . . . . . . . . . . . . . 1 . . . . . . . . . . . . . . . . . Corruption 1 | . . . . . . . . . . . . . . . 1 . . . . . . . . . . . . . . . . . Feedback Blocked . | . . . . . . . . . . . . . . . . . . . . . . . . . . . . . . . . . Robot Schematics Acquired . | . . . . . . . . . . . . . . . . . . . . . . . . . . . . . . . . . Robots Built . | . . . . . . . . . . . . . . . . . . . . . . . . . . . . . . . . . Authchips . | . . . . . . . . . . . . . . . . . . . . . . . . . . . . . . . . . Time . | . . . . . . . . . . . . . . . . . . . . . . . . . . . . . . . . . Total Robot Build Rating . | . . . . . . . . . . . . . . . . . . . . . . . . . . . . . . . . . Part Schematics Acquired 6 | . . . . . 3 . . . 2 . . . . . 1 . . . . . . . . . . . . . . . . . Parts Built . | . . . . . . . . . . . . . . . . . . . . . . . . . . . . . . . . . Authchips . | . . . . . . . . . . . . . . . . . . . . . . . . . . . . . . . . . Time . | . . . . . . . . . . . . . . . . . . . . . . . . . . . . . . . . . Total Part Build Rating . | . . . . . . . . . . . . . . . . . . . . . . . . . . . . . . . . . Parts Repaired 16 | . 2 . . . . . 1 . . . . . . . 4 . . . 4 3 . . . . . . . . . . . 2 Time 884 | . 52 . . . . . 44 . . . . . . . 187 . . . 307 204 . . . . . . . . . . . 90 Parts Recycled . | . . . . . . . . . . . . . . . . . . . . . . . . . . . . . . . . . Recycled Matter . | . . . . . . . . . . . . . . . . . . . . . . . . . . . . . . . . . Retrieved Matter 173 | . . . . . . . . . 173 . . . . . . . . . . . . . . . . . . . . . . . Retrieved Components 38 | . 1 . . . 10 . 17 . . . . . . . . . . . . . . . . . . . 10 . . . . . Parts Scanalyzed 6 | . . . . . 2 . . . 2 . . . . . 1 . 1 . . . . . . . . . . . . . . . Part Schematics Acquired 5 | . . . . . 2 . . . 2 . . . . . 1 . . . . . . . . . . . . . . . . . Parts Damaged 1 | . . . . . 1 . . . . . . . . . . . . . . . . . . . . . . . . . . . Bothacking | -11 -10 -10 -10 -9 -8 -8 -8 -8 -7 -7 -7 -7 -6 -6 -5 -5 -4 -4 -4 -4 -4 -4 -4 -4 -3 -3 -2 -2 -1 -1 -1 -1 ------------ Run | Yrd Mat Min Exi Min Mat Gar Mat Gar Fac Gar Fac Gar Fac Gar Fac Gar Fac Gar Fac Ext Cet Arc Hub Gar Res Gar Res Gar Acc Gar Acc Com Used RIF Installer 14 | . . . . . . 1 . 1 . 2 . 1 . 2 . 2 . 1 . . . . . 1 . 1 . 1 . 1 . . Coupler Efficiency 1 | . . . . . . . . . . . . . . . . . . 1 . . . . . . . . . . . . . . Hotswap 1 | . . . . . . . . . . . . . . . . . . . . . . . . . . 1 . . . . . . Code Merge 1 | . . . . . . . . . . . . . . . . . . . . . . . . 1 . . . . . . . . Threat Obfuscator 3 | . . . . . . . . . . . . . . 1 . 1 . . . . . . . . . . . . . 1 . . Signal Jammer 1 | . . . . . . . . . . . . 1 . . . . . . . . . . . . . . . . . . . . Zone Cloak 2 | . . . . . . . . 1 . . . . . 1 . . . . . . . . . . . . . . . . . . Watcher Feeds 1 | . . . . . . . . . . . . . . . . 1 . . . . . . . . . . . . . . . . Structural Interface 1 | . . . . . . . . . . 1 . . . . . . . . . . . . . . . . . . . . . . Program Shield 1 | . . . . . . . . . . 1 . . . . . . . . . . . . . . . . . . . . . . Autooverride 1 | . . . . . . . . . . . . . . . . . . . . . . . . . . . . 1 . . . . Robots Hacked 129 | . . . . . . 4 . 3 7 5 . . 3 2 5 2 3 20 3 . . . 2 2 1 25 9 11 . 11 6 5 Non-combat 18 | . . . . . . . . . 5 . . . . . . . . . . . . . . . . . 7 . . . 3 3 Combat 111 | . . . . . . 4 . 3 2 5 . . 3 2 5 2 3 20 3 . . . 2 2 1 25 2 11 . 11 3 2 Autooverrided 1 | . . . . . . . . . . . . . . . . . . . . . . . . . . . . . . 1 . . Robot Hacks Applied 151 | . . . . . . 4 . 3 10 5 . . 4 2 7 2 4 22 4 . . . 2 3 2 28 13 11 . 13 7 5 parse_system 4 | . . . . . . . . . . . . . . . . . . 2 . . . . . . . 1 . . . 1 . . map_walls 1 | . . . . . . . . . 1 . . . . . . . . . . . . . . . . . . . . . . . drop_inventory 3 | . . . . . . . . . 2 . . . . . . . . . . . . . . . . . 1 . . . . . ignore_parts 3 | . . . . . . . . . . . . . . . . . . . . . . . . . . . 3 . . . . . find_station 1 | . . . . . . . . . . . . . . . . . . . . . . . . . . . . . . . . 1 purge_threat 1 | . . . . . . . . . 1 . . . . . . . . . . . . . . . . . . . . . . . reprogram_traps 1 | . . . . . . . . . 1 . . . . . . . . . . . . . . . . . . . . . . . clear_recycling 1 | . . . . . . . . . 1 . . . . . . . . . . . . . . . . . . . . . . . map_route 9 | . . . . . . . . . 1 . . . . . . . . . . . . . . . . . 3 . . . 3 2 find_shortcuts 1 | . . . . . . . . . . . . . . . . . . . . . . . . . . . . . . 1 . . find_garrison 7 | . . . . . . . . . . . . . 1 . 2 . 1 . 1 . . . . . 1 . 1 . . . . . scatter_targeting 1 | . . . . . . . . . . . . . . . . . . 1 . . . . . . . . . . . . . . spike_heat 1 | . . . . . . . . . . . . . . . 1 . . . . . . . . . . . . . . . . . amplify_resonance 4 | . . . . . . . . . . 1 . . . . . . . 1 . . . . . . . 1 . . . 1 . . wipe_record 1 | . . . . . . . . . . . . . . . . . . . . . . . . 1 . . . . . . . . reboot_system 7 | . . . . . . . . . 1 . . . . . . 1 1 1 . . . . . . . 2 . . . 1 . . overwrite_iff 36 | . . . . . . 2 . . 1 . . . . 2 . . . 11 . . . . . . . 7 1 9 . 1 2 . streamctrl_low 1 | . . . . . . . . . . . . . . . . . . . . . . . . . . . 1 . . . . . streamctrl_high 2 | . . . . . . . . . . . . . . . . . . . . . . . . . . . . 2 . . . . formatsys_low 1 | . . . . . . . . . . . . . . . . . . . . . . . . . . . 1 . . . . . formatsys_high 65 | . . . . . . 2 . 3 1 4 . . 3 . 4 1 2 6 3 . . . 2 2 1 17 2 . . 8 2 2 Relay Couplers Released 135 | . . . . . . . . 12 . 8 . 19 . 6 1 16 . 22 . . . . 1 9 . 21 . 10 . 10 . . Machine Destruction 135 | . . . . . . . . 12 . 8 . 19 . 6 1 16 . 22 . . . . 1 9 . 21 . 10 . 10 . . Attached 48 | . . . . . . 1 . 2 2 2 . 2 2 . 3 2 1 8 1 . . . 1 2 1 12 1 3 . 1 1 . Merged Code Value 287 | . . . . . . . . . . . . . . . . . . . . . . . . . . 77 . 143 . 67 . . Fabnet Peak Effective % . | . . . . . . . . . . . . . . . . . . . . . . . . . . . . . . . . . Robots Rewired 37 | . . . . . . . . 3 . . . . . . . 4 . 2 . 18 . . . 2 . 6 . . . 2 . . Allies Hacked 3 | . . . . . . . . . . 1 . . . . . . . . . 1 . . . . . . . . . 1 . . Hacks Repelled . | . . . . . . . . . . . . . . . . . . . . . . . . . . . . . . . . . Allies | -11 -10 -10 -10 -9 -8 -8 -8 -8 -7 -7 -7 -7 -6 -6 -5 -5 -4 -4 -4 -4 -4 -4 -4 -4 -3 -3 -2 -2 -1 -1 -1 -1 -------- Run | Yrd Mat Min Exi Min Mat Gar Mat Gar Fac Gar Fac Gar Fac Gar Fac Gar Fac Gar Fac Ext Cet Arc Hub Gar Res Gar Res Gar Acc Gar Acc Com Total Allies 148 | . . . . . . 4 . 8 1 4 . . 3 2 4 5 2 23 3 20 . . 2 4 1 30 4 11 . 12 3 2 Largest Group 12 | . . . . . . 2 . 5 1 2 . . 2 3 1 4 2 6 7 11 6 4 5 4 4 12 3 4 . 4 1 1 Highest-Rated Group 592 | . . . . . . 32 . 80 16 32 . . 76 105 49 266 168 449 490 545 381 283 391 436 436 592 150 243 . 426 119 64 Highest-Rated Ally 219 | . . . . . . 16 . 25 16 29 . . 47 47 49 119 119 99 99 159 156 156 137 119 119 116 69 69 . 219 119 64 Total Orders 18 | . . . . . . . . 2 . 2 . . . . . . . . 4 1 . . . . . 4 4 . . . 1 . STAY 10 | . . . . . . . . 1 . 1 . . . . . . . . 2 1 . . . . . 2 2 . . . 1 . ROAM 1 | . . . . . . . . . . . . . . . . . . . . . . . . . . 1 . . . . . . FOLLOW 5 | . . . . . . . . 1 . 1 . . . . . . . . 2 . . . . . . 1 . . . . . . AID 2 | . . . . . . . . . . . . . . . . . . . . . . . . . . . 2 . . . . . Ally Attacks 685 | . . . . . . 13 . 11 8 27 . . 4 23 6 48 7 67 44 98 24 9 20 3 52 106 7 38 . 55 11 4 Total Damage 21706 | . . . . . . 163 . 268 81 306 . . 236 523 163 1816 260 2202 984 3414 684 165 1114 102 1963 2918 311 1163 . 2436 295 139 Kills 140 | . . . . . . 1 . 4 . 3 . . 1 2 1 29 2 10 5 21 4 2 4 . 13 16 1 6 . 12 3 . Allies Corrupted 3 | . . . . . . . . . . . . . . . . . . . 1 . . . . . . . . . . . 1 1 Allies Melted 4 | . . . . . . . . . . . . . . . 1 . . 1 . 1 . . . . . 1 . . . . . . Intel | -11 -10 -10 -10 -9 -8 -8 -8 -8 -7 -7 -7 -7 -6 -6 -5 -5 -4 -4 -4 -4 -4 -4 -4 -4 -3 -3 -2 -2 -1 -1 -1 -1 ------- Run | Yrd Mat Min Exi Min Mat Gar Mat Gar Fac Gar Fac Gar Fac Gar Fac Gar Fac Gar Fac Ext Cet Arc Hub Gar Res Gar Res Gar Acc Gar Acc Com Robot Analysis Total 2 | . 1 . . . . . . . 1 . . . . . . . . . . . . . . . . . . . . . . . Derelict Logs Recovered . | . . . . . . . . . . . . . . . . . . . . . . . . . . . . . . . . . Drone Launches . | . . . . . . . . . . . . . . . . . . . . . . . . . . . . . . . . . Drone Recoveries . | . . . . . . . . . . . . . . . . . . . . . . . . . . . . . . . . . Exploration | -11 -10 -10 -10 -9 -8 -8 -8 -8 -7 -7 -7 -7 -6 -6 -5 -5 -4 -4 -4 -4 -4 -4 -4 -4 -3 -3 -2 -2 -1 -1 -1 -1 ------------- Run | Yrd Mat Min Exi Min Mat Gar Mat Gar Fac Gar Fac Gar Fac Gar Fac Gar Fac Gar Fac Ext Cet Arc Hub Gar Res Gar Res Gar Acc Gar Acc Com Turns Passed 45513 | 220 3049 57 463 187 2653 2922 1897 2490 1660 1945 50 2869 508 955 2859 2024 794 1697 1308 1906 536 418 1713 1795 918 2490 1214 1025 18 845 910 1118 Spaces Moved 19468 | 113 1614 27 287 54 1108 676 577 876 584 600 19 885 288 453 1115 919 416 864 560 833 305 136 897 692 335 995 787 752 13 553 535 600 Core 10 | 1 . . . . . 8 . . . . . . . . . . . . . . . . . . . . . . . . . 1 Treads 13583 | 112 1614 27 287 54 1108 407 20 876 584 419 . 459 288 453 825 797 416 864 560 833 305 136 897 692 335 215 . . . . . . Legs 5665 | . . . . . . 83 557 . . 178 19 397 . . 290 122 . . . . . . . . . 780 787 752 13 553 535 599 Wheels . | . . . . . . . . . . . . . . . . . . . . . . . . . . . . . . . . . Hover 209 | . . . . . . 178 . . . 3 . 28 . . . . . . . . . . . . . . . . . . . . Flight 1 | . . . . . . . . . . . . 1 . . . . . . . . . . . . . . . . . . . . Fastest Speed 50 | 50 160 160 160 160 160 240 240 240 240 240 262 160 160 160 160 152 155 155 155 161 155 155 155 160 240 120 118 118 118 116 113 113 Average Speed 188 | 159 160 160 160 186 194 384 277 240 240 274 262 265 160 160 177 191 155 155 159 161 155 155 156 210 240 214 119 118 118 117 113 128 Slowest Speed 1500 | 160 240 160 160 240 240 1500 330 240 240 830 262 970 160 160 640 237 156 156 237 161 161 155 160 320 320 560 190 118 118 118 116 550 Overloaded Moves . | . . . . . . . . . . . . . . . . . . . . . . . . . . . . . . . . . Propulsion Burnouts . | . . . . . . . . . . . . . . . . . . . . . . . . . . . . . . . . . Robots Hopped . | . . . . . . . . . . . . . . . . . . . . . . . . . . . . . . . . . Cave-ins Triggered 3 | . . . . . . . . . . . . . . . 1 . . . . . . . . . . 1 . . . . . 1 Exploration Rate (%) 50 | 7 95 13 61 14 57 84 56 71 14 58 1 88 11 65 32 94 10 98 19 73 87 78 89 81 14 90 22 64 1 63 19 29 Regions Visited 32 Branch Regions 8 Pre-discovered Areas 10 | . 4 . 1 . 2 . 3 . . . . . . . . . . . . . . . . . . . . . . . . . Known Exits Taken 12 | . . 1 . . 1 . 1 . 1 . 1 . 1 . 1 . 1 . . . . . 1 . 1 . 1 . 1 . . . Unknown Exits Taken 9 | 1 1 . 1 1 . . . . . . . . . . . . . . 1 1 1 1 . . . . . . . . 1 . Scrap Searched . | . . . . . . . . . . . . . . . . . . . . . . . . . . . . . . . . . Spaces Dug 159 | . 2 . . . 3 . . 6 . 29 . . 4 . 43 6 8 . 7 3 . . 18 . . 6 12 . . 1 11 . Terrain Destroyed 1722 | . 2 . . . 21 60 1 102 17 30 24 33 6 . 272 25 77 13 13 51 2 10 699 45 13 12 18 100 . 28 12 36 Melee . | . . . . . . . . . . . . . . . . . . . . . . . . . . . . . . . . . Projectile 333 | . 2 . . . 3 . . . . 1 . 9 6 . 91 4 29 13 13 42 2 10 34 5 13 12 18 . . 7 12 7 AOE 1388 | . . . . . 18 60 . 102 17 29 24 24 . . 181 21 48 . . 9 . . 665 40 . . . 100 . 21 . 29 Terrain Rammed . | . . . . . . . . . . . . . . . . . . . . . . . . . . . . . . . . . Walls Destroyed . | . . . . . . . . . . . . . . . . . . . . . . . . . . . . . . . . . Machines Disabled . | . . . . . . . . . . . . . . . . . . . . . . . . . . . . . . . . . Actions | -11 -10 -10 -10 -9 -8 -8 -8 -8 -7 -7 -7 -7 -6 -6 -5 -5 -4 -4 -4 -4 -4 -4 -4 -4 -3 -3 -2 -2 -1 -1 -1 -1 --------- Run | Yrd Mat Min Exi Min Mat Gar Mat Gar Fac Gar Fac Gar Fac Gar Fac Gar Fac Gar Fac Ext Cet Arc Hub Gar Res Gar Res Gar Acc Gar Acc Com Total 25489 | 132 1896 31 292 87 1496 874 771 1161 759 777 19 1176 319 590 1662 1126 504 1143 941 1274 337 318 1071 937 399 1270 955 849 15 713 766 829 Wait 2360 | . 125 . . . 232 39 95 128 67 57 . 62 . 69 241 17 14 129 313 253 5 165 21 56 . 32 44 6 . 45 107 38 Move 19441 | 112 1613 26 286 53 1108 675 577 875 583 599 19 884 288 452 1114 918 415 863 559 832 304 135 896 691 334 994 786 751 13 552 534 600 Hop . | . . . . . . . . . . . . . . . . . . . . . . . . . . . . . . . . . Pick Up 268 | 4 22 . 2 2 28 6 4 10 9 5 . 11 4 3 17 16 5 13 6 6 . 1 14 14 7 23 8 6 . 6 2 14 Fast Attach 249 | 7 3 . . 1 8 7 4 6 5 11 . 22 2 2 31 14 13 7 10 4 2 2 9 18 10 23 8 3 . 1 11 5 Attach 101 | . . . . 2 4 6 . 2 3 2 . 10 1 . 6 1 1 3 3 3 . . 8 9 1 2 5 2 2 3 . 22 Detach 70 | . . . . . . 1 4 3 . 1 . 9 1 1 3 5 3 4 3 1 . 1 2 8 3 6 1 2 . 2 4 2 Swap 459 | . 11 . 1 2 16 16 15 24 22 12 . 12 6 10 34 31 11 23 10 8 4 . 15 16 5 31 27 27 . 23 17 30 Drop 395 | . 17 . 3 1 26 3 16 17 9 14 . 28 4 4 28 35 12 14 11 5 4 2 9 20 12 32 12 14 . 12 16 15 Fire 1558 | 9 105 5 . 26 74 72 54 47 41 66 . 112 13 40 184 29 30 62 21 61 9 11 94 78 25 60 64 27 . 48 27 64 Melee 25 | . . . . . . 7 . 4 14 . . . . . . . . . . . . . . . . . . . . . . . Ram . | . . . . . . . . . . . . . . . . . . . . . . . . . . . . . . . . . Kick 8 | . . . . . . . 2 . . . . 2 . . 1 . . . . . . . . . . . . . . . . 3 Crush 12 | . . . . . . . . . 1 . . . . . 2 . . . 3 . . 1 3 . 2 . . . . . . . Escape Stasis 108 | . . . . . . 39 . 4 . 4 . 9 . . 1 8 . 1 . 1 . . . 10 . 21 . 5 . 5 . . Rewire 228 | . . . . . . 3 . 27 . . . . . . . 40 . 15 2 100 . . . 3 . 31 . . . 7 . . Trap . | . . . . . . . . . . . . . . . . . . . . . . . . . . . . . . . . . Miscellaneous 207 | . . . . . . . . 14 5 6 . 15 . 9 . 12 . 9 . . 9 . . 14 . 15 . 6 . 9 48 36 Route ------- -11/Scrapyard -10/Materials (discovered 4 exits: *Mat x3 / [*Min]) -10/Mines (discovered 4 exits: Mat x2 / *Exi / Sub) -10/Exiles -9/Mines -8/Materials (discovered 3 exits: *Fac x2 / Gar) -8/Garrison (discovered 3 exits: *Mat x3) -8/Materials (discovered 2 exits: *Fac / Gar) -8/Garrison (discovered 2 exits: *Fac x2) -7/Factory (discovered 4 exits: Fac / Low x2 / Gar) -7/Garrison (discovered 2 exits: *Fac x2) -7/Factory -7/Garrison (discovered 3 exits: *Fac x3) -6/Factory -6/Garrison (discovered 2 exits: *Fac x2) -5/Factory (discovered 2 exits: [*Upp] / Gar) -5/Garrison (discovered 3 exits: *Fac x3) -4/Factory (discovered 2 exits: [*Upp] / Gar) -4/Garrison (discovered 3 exits: *Fac x3) -4/Factory (discovered 3 exits: *Res / [*Upp] / *Ext) -4/Extension (discovered 3 exits: *Res x2 / *Cet) -4/Cetus (discovered 2 exits: *Res / *Arc) -4/Archives (discovered 2 exits: *Hub x2) -4/Hub_04(d) (discovered 4 exits: *Res x3 / Gar) -4/Garrison (discovered 3 exits: *Res x3) -3/Research -3/Garrison (discovered 3 exits: *Res x3) -2/Research -2/Garrison (discovered 3 exits: *Acc x3) -1/Access -1/Garrison (discovered 4 exits: [*Acc x4]) -1/Access -1/Command History --------- Turn | Location | Event 18 | -11/Scrapyard | Discovered new exit (range 14) 221 | -11/Scrapyard | Entered Materials 303 | -10/Materials | Build established: Mutant 678 | -10/Materials | Discovered new exit (range 3) 781 | -10/Materials | Discovered new exit (range 12) 1199 | -10/Materials | Discovered new exit (range 12) 1378 | -10/Materials | Central database locked down 1448 | -10/Materials | Learned Storage security intel 1506 | -10/Materials | Learned location of 2 exits from Mines 1578 | -10/Materials | Discovered new exit (range 8) 1592 | -10/Materials | Learned 2 Mines zone layouts 1619 | -10/Materials | Learned Storage stockpile data 1657 | -10/Materials | Learned location of Recycling (-7) 1703 | -10/Materials | Learned location of 2 exits from Mines 1787 | -10/Materials | Core integrity fell below 50% 3199 | -10/Materials | Repaired Lgt. Treads 3227 | -10/Materials | Repaired Lgt. Cannon 3270 | -10/Materials | Entered Mines 3271 | -10/Mines | Identified exit to Exiles 3271 | -10/Mines | Identified exit to Materials 3271 | -10/Mines | Identified exit to Subcaves 3319 | -10/Mines | Deemed a non-threat by the Exiles lab entrance 3327 | -10/Mines | Entered Exiles 3366 | -10/Exiles | Met 8R-AWN 3393 | -10/Exiles | Met EX-HEX 3439 | -10/Exiles | Met EX-BIN 3475 | -10/Exiles | Aligned with FarCom system 3476 | -10/Exiles | Given EX-Vault access code 3513 | -10/Exiles | Opened EX-Vault 3524 | -10/Exiles | Found Firepult 3558 | -10/Exiles | Warned to stay clear of 0b10 Research branches 3582 | -10/Exiles | Exiles lab attacked by MAIN.C 3619 | -10/Exiles | Learned location of Zion (-6) 3678 | -10/Exiles | Discovered new exit (range 14) 3790 | -10/Exiles | Left Exiles lab with Firepult 3790 | -10/Exiles | Entered Mines 3811 | -9/Mines | Core integrity fell below 20% 3906 | -9/Mines | Lost 3 parts (1n2w) 3964 | -9/Mines | Discovered new exit (range 7) 3977 | -9/Mines | Entered Materials 3977 | -8/Materials | Evolved 4 slots: Propulsion x2, Utility x2 4985 | -8/Materials | Build established: Scavenger-Mutant 5763 | -8/Materials | Discovered new exit (range 17) 6502 | -8/Materials | Discovered new exit (range 15) 6630 | -8/Materials | Identified exit to Garrison 6630 | -8/Materials | Entered Garrison 6654 | -8/Garrison | Triggered checkpoint 7023 | -8/Garrison | Core integrity fell below 50% 7089 | -8/Garrison | Triggered checkpoint 7107 | -8/Garrison | Triggered checkpoint 7107 | -8/Garrison | Triggered checkpoint 7120 | -8/Garrison | Triggered checkpoint 7157 | -8/Garrison | Destroyed 11 combat bots 7334 | -8/Garrison | Build established: Mutant 7489 | -8/Garrison | Discovered new exit (range 12) 7640 | -8/Garrison | Triggered checkpoint 7906 | -8/Garrison | Installed Relay Interface Framework 8572 | -8/Garrison | Triggered checkpoint 8699 | -8/Garrison | Discovered new exit (range 12) 9182 | -8/Garrison | Triggered checkpoint 9211 | -8/Garrison | Core integrity fell below 20% 9268 | -8/Garrison | Lost 5 parts (1p3n1u) 9482 | -8/Garrison | Discovered new exit (range 10) 9552 | -8/Garrison | Entered Materials 9914 | -8/Materials | Repaired Hvy. Missile Launcher 10010 | -8/Materials | Discovered new exit (range 4) 10344 | -8/Materials | Build established: Scavenger-Mutant 10652 | -8/Materials | Learned Storage emergency access door positions 10755 | -8/Materials | Learned location of Extension (-4) 10817 | -8/Materials | Learned 4 Factory zone layouts 10832 | -8/Materials | Learned Factory repair station intel 10855 | -8/Materials | Learned Factory repair station intel 10931 | -8/Materials | Learned Factory trap positions 11449 | -8/Materials | Identified exit to Garrison 11449 | -8/Materials | Entered Garrison 11515 | -8/Garrison | Triggered checkpoint 11581 | -8/Garrison | Triggered checkpoint 11919 | -8/Garrison | Rescued a captive Derelict 11920 | -8/Garrison | Rescued a captive Derelict 12163 | -8/Garrison | Triggered checkpoint 12164 | -8/Garrison | Destroyed 7 combat bots 12170 | -8/Garrison | Lost 4 allies 12180 | -8/Garrison | Triggered checkpoint 12219 | -8/Garrison | Triggered checkpoint 12396 | -8/Garrison | Discovered new exit (range 11) 12515 | -8/Garrison | Triggered checkpoint 12582 | -8/Garrison | Garrison Relay disabled 12694 | -8/Garrison | Triggered checkpoint 12909 | -8/Garrison | Build established: Bothacker-Mutant 13179 | -8/Garrison | Triggered checkpoint 13247 | -8/Garrison | Garrison Relay disabled 13300 | -8/Garrison | Discovered new exit (range 14) 13334 | -8/Garrison | Learned Factory security intel 13638 | -8/Garrison | Expanded RIF knowledge: Zone Cloak 13939 | -8/Garrison | Entered Factory 13939 | -7/Factory | Accompanied by 1 ally 13939 | -7/Factory | Evolved 2 slots: Propulsion x1, Utility x1 13940 | -7/Factory | Identified exit to Lower Caves 13941 | -7/Factory | Identified exit to Factory 13942 | -7/Factory | Loaded intel: 116 trap records 13944 | -7/Factory | Loaded intel: 6 repair station locations 14247 | -7/Factory | Found Rocket Array 15312 | -7/Factory | Build established: Scavenger-Mutant 15575 | -7/Factory | Identified exit to Garrison 15599 | -7/Factory | Entered Garrison 15669 | -7/Garrison | Triggered checkpoint 15765 | -7/Garrison | Garrison Relay disabled 15999 | -7/Garrison | Triggered checkpoint 16060 | -7/Garrison | Build established: Bothacker-Mutant 16158 | -7/Garrison | Discovered new exit (range 12) 16186 | -7/Garrison | Triggered checkpoint 16250 | -7/Garrison | Garrison Relay disabled 16667 | -7/Garrison | Lost 3 parts (1p2n) 16771 | -7/Garrison | Expanded RIF knowledge: Program Shield 17195 | -7/Garrison | Triggered checkpoint 17205 | -7/Garrison | Triggered checkpoint 17311 | -7/Garrison | Triggered checkpoint 17363 | -7/Garrison | Expanded RIF knowledge: Structural Interface 17429 | -7/Garrison | Discovered new exit (range 2) 17544 | -7/Garrison | Entered Factory 17545 | -7/Factory | Loaded intel: 6 repair station locations 17594 | -7/Factory | Identified exit to Garrison 17594 | -7/Factory | Entered Garrison 17672 | -7/Garrison | Triggered checkpoint 17733 | -7/Garrison | Expanded RIF knowledge: Signal Jamming 17994 | -7/Garrison | Triggered checkpoint 18024 | -7/Garrison | Destroyed 12 combat bots 18214 | -7/Garrison | Triggered checkpoint 18328 | -7/Garrison | Discovered exit to Factory (range 5) 18366 | -7/Garrison | Triggered checkpoint 18401 | -7/Garrison | Garrison Relay disabled 18432 | -7/Garrison | System corruption reached 10% 18455 | -7/Garrison | Lost 3 parts (2n1u) 18723 | -7/Garrison | Lost 4 parts (1n3u) 18778 | -7/Garrison | Garrison Relay disabled 18863 | -7/Garrison | Garrison Relay disabled 18975 | -7/Garrison | Garrison Relay disabled 19012 | -7/Garrison | Garrison Relay disabled 19232 | -7/Garrison | Build established: Botlord-Mutant 19304 | -7/Garrison | Triggered checkpoint 19841 | -7/Garrison | Discovered exit to Factory (range 11) 20308 | -7/Garrison | Discovered exit to Factory (range 2) 20416 | -7/Garrison | Build established: Bothacker-Mutant 20463 | -7/Garrison | Entered Factory 20463 | -6/Factory | Evolved 2 slots: Propulsion x1, Utility x1 20813 | -6/Factory | First assault squad dispatched 20971 | -6/Factory | Identified exit to Garrison 20971 | -6/Factory | Entered Garrison 20971 | -6/Garrison | Accompanied by 2 allies 21099 | -6/Garrison | Triggered checkpoint 21144 | -6/Garrison | Garrison Relay disabled 21231 | -6/Garrison | Triggered checkpoint 21277 | -6/Garrison | Lost 3 allies 21345 | -6/Garrison | Triggered checkpoint 21433 | -6/Garrison | Discovered new exit (range 10) 21476 | -6/Garrison | Expanded RIF knowledge: Threat Obfuscation 21571 | -6/Garrison | Found Hvy. Reflective Plating 21783 | -6/Garrison | Garrison Relay disabled 21832 | -6/Garrison | Discovered new exit (range 9) 21900 | -6/Garrison | Expanded RIF knowledge: Zone Cloak 21926 | -6/Garrison | Entered Factory 21926 | -5/Factory | Evolved 2 slots: Power x1, Utility x1 22046 | -5/Factory | Repaired Imp. Heavy Treads 22121 | -5/Factory | Repaired Imp. Heavy Treads 22166 | -5/Factory | Repaired Imp. Cooling System 22317 | -5/Factory | Repaired Hvy. Reflective Plating 22526 | -5/Factory | First assault squad dispatched 23118 | -5/Factory | Discovered new exit (range 15) 23160 | -5/Factory | Found Prototype Launcher 23160 | -5/Factory | Identified Mni. Smartbomb Launcher 23222 | -5/Factory | Build established: Scavenger-Mutant 23590 | -5/Factory | Garrison activated, responded to threat 23988 | -5/Factory | Destroyed 11 combat bots 23991 | -5/Factory | Lost 6 parts (3n2u1w) 24753 | -5/Factory | Learned Testing interactive machine intel 24766 | -5/Factory | Crushed by falling debris 24767 | -5/Factory | System corruption reached 10% 24785 | -5/Factory | Identified exit to Garrison 24785 | -5/Factory | Entered Garrison 24832 | -5/Garrison | Expanded RIF knowledge: Threat Obfuscation 25134 | -5/Garrison | Triggered checkpoint 25159 | -5/Garrison | Destroyed 9 combat bots 25177 | -5/Garrison | Triggered checkpoint 25242 | -5/Garrison | Discovered new exit (range 11) 25279 | -5/Garrison | Garrison Relay disabled 25386 | -5/Garrison | Spotted Striker 25391 | -5/Garrison | Triggered checkpoint 25422 | -5/Garrison | Destroyed Striker 25461 | -5/Garrison | Rewired Executioner 25565 | -5/Garrison | Triggered checkpoint 25610 | -5/Garrison | Garrison Relay disabled 25811 | -5/Garrison | Triggered checkpoint 25893 | -5/Garrison | Build established: Bothacker-Mutant 25959 | -5/Garrison | Triggered checkpoint 26005 | -5/Garrison | Garrison Relay disabled 26123 | -5/Garrison | Discovered new exit (range 14) 26157 | -5/Garrison | Expanded RIF knowledge: Watcher Feeds 26267 | -5/Garrison | Identified exit to Factory 26289 | -5/Garrison | Build established: Botlord-Mutant 26407 | -5/Garrison | Triggered checkpoint 26489 | -5/Garrison | Discovered exit to Factory (range 10) 26598 | -5/Garrison | Learned Factory security intel 26670 | -5/Garrison | Garrison Relay disabled 26809 | -5/Garrison | Entered Factory 26809 | -4/Factory | Accompanied by 2 allies 26809 | -4/Factory | Evolved 2 slots: Utility x1, Weapon x1 26992 | -4/Factory | Found Prototype Device 26992 | -4/Factory | Identified Adv. Kinecellerator 27000 | -4/Factory | Found Prototype Processor 27000 | -4/Factory | Identified Exp. Core Analyzer 27007 | -4/Factory | Found Prototype Processor 27007 | -4/Factory | Identified Exp. Targeting Computer 27059 | -4/Factory | First assault squad dispatched 27295 | -4/Factory | Build established: Botlord-Gunner 27376 | -4/Factory | Discovered new exit (range 10) 27592 | -4/Factory | Identified exit to Garrison 27603 | -4/Factory | Entered Garrison 27603 | -4/Garrison | Accompanied by 1 ally 27643 | -4/Garrison | Rescued a captive Derelict 27645 | -4/Garrison | Rescued a captive Derelict 27647 | -4/Garrison | Expanded RIF knowledge: Coupler Efficiency 27757 | -4/Garrison | Garrison Relay disabled 27770 | -4/Garrison | Triggered checkpoint 27829 | -4/Garrison | Triggered checkpoint 27899 | -4/Garrison | Lost 6 allies 27981 | -4/Garrison | Spotted B-86 Titan 27988 | -4/Garrison | Destroyed B-86 Titan 27992 | -4/Garrison | Triggered checkpoint 28087 | -4/Garrison | Triggered checkpoint 28152 | -4/Garrison | Lost 3 allies 28219 | -4/Garrison | Triggered checkpoint 28285 | -4/Garrison | Triggered checkpoint 28327 | -4/Garrison | Discovered new exit (range 10) 28329 | -4/Garrison | Lost 3 allies 28581 | -4/Garrison | Triggered checkpoint 28611 | -4/Garrison | Garrison Relay disabled 28724 | -4/Garrison | Discovered new exit (range 12) 28778 | -4/Garrison | Found embedded Infiltrators 28837 | -4/Garrison | Spotted Executioner 28855 | -4/Garrison | Destroyed Executioner 28906 | -4/Garrison | Build established: Scavenger-Gunner 28926 | -4/Garrison | Found Exp. Targeting Computer 28940 | -4/Garrison | Rewired Striker 28954 | -4/Garrison | Rewired Striker 29129 | -4/Garrison | Triggered checkpoint 29164 | -4/Garrison | Garrison Relay disabled 29188 | -4/Garrison | Discovered new exit (range 10) 29300 | -4/Garrison | Entered Factory 29300 | -4/Factory | Accompanied by 5 allies 29571 | -4/Factory | Discovered new exit (range 6) 29727 | -4/Factory | Repaired Broken Adv. Heavy Siege Treads 29803 | -4/Factory | Repaired Biometal Heavy Treads 29882 | -4/Factory | Lost 3 allies 30032 | -4/Factory | Discovered new exit (range 5) 30111 | -4/Factory | Repaired Hvy. Treads 30186 | -4/Factory | Repaired Quantum Reactor 30521 | -4/Factory | Found Prototype Hackware 30521 | -4/Factory | Identified Exp. Hacking Suite 30532 | -4/Factory | Found Prototype Launcher 30532 | -4/Factory | Identified Tesla Bomb Launcher 30584 | -4/Factory | Discovered new exit (range 15) 30608 | -4/Factory | Entered Extension 30706 | -4/Extension | Rescued A7 30711 | -4/Extension | Rescued a captive Derelict 30939 | -4/Extension | Energy Cycler disabled 30939 | -4/Extension | Rescued a captive Derelict 30939 | -4/Extension | Rescued a captive Derelict 30939 | -4/Extension | Rescued a captive Derelict 30940 | -4/Extension | Rescued a captive Derelict 31493 | -4/Extension | Spotted B-86 Titan 31552 | -4/Extension | Lost 3 parts (1u2w) 31580 | -4/Extension | Lost 3 allies 31803 | -4/Extension | Spotted B-86 Titan 31813 | -4/Extension | Allies destroyed B-86 Titan 31825 | -4/Extension | Discovered new exit (range 15) 32171 | -4/Extension | Repaired Enh. Nova Cannon 32246 | -4/Extension | Repaired Quantum Reactor 32303 | -4/Extension | Repaired Adv. Cooling System 32495 | -4/Extension | Discovered new exit (range 10) 32496 | -4/Extension | Discovered new exit (range 6) 32514 | -4/Extension | Entered Cetus 32514 | -4/Cetus | Accompanied by 6 allies (A7) 32519 | -4/Cetus | Acquired a Cetus Manufacturing Module code from A7 32534 | -4/Cetus | Spotted Cetus Guard 32534 | -4/Cetus | Spotted Cetus Guard 32536 | -4/Cetus | Spotted Cetus Guard 32539 | -4/Cetus | Spotted Cetus Guard 32540 | -4/Cetus | Allies destroyed Cetus Guard 32542 | -4/Cetus | Allies destroyed Cetus Guard 32542 | -4/Cetus | Destroyed Cetus Guard 32544 | -4/Cetus | Allies destroyed Cetus Guard 32657 | -4/Cetus | Escorted A7 to Cetus Mainframe 32852 | -4/Cetus | Discovered new exit (range 15) 32883 | -4/Cetus | Spotted Cetus Guard 32883 | -4/Cetus | Spotted Cetus Guard 32885 | -4/Cetus | Spotted Cetus Guard 32887 | -4/Cetus | Spotted Cetus Guard 32891 | -4/Cetus | Destroyed Cetus Guard 32894 | -4/Cetus | Destroyed Cetus Guard 32901 | -4/Cetus | Destroyed Cetus Guard 32905 | -4/Cetus | Allies destroyed Cetus Guard 32913 | -4/Cetus | Discovered new exit (range 16) 32921 | -4/Cetus | Met Revision 17 33050 | -4/Cetus | Entered Archives 33050 | -4/Archives | Accompanied by 4 allies (A7) 33055 | -4/Archives | Received a hacking code to weaken MAIN.C 33120 | -4/Archives | Discovered new exit (range 16) 33154 | -4/Archives | Discovered new exit (range 15) 33288 | -4/Archives | Unable to access archive contents 33468 | -4/Archives | Entered Hub_04(d) 33468 | -4/Hub_04(d) | Accompanied by 3 allies 33529 | -4/Hub_04(d) | Identified exit to Garrison 33760 | -4/Hub_04(d) | Spotted B-86 Titan 33771 | -4/Hub_04(d) | Allies destroyed B-86 Titan 33798 | -4/Hub_04(d) | Lost 3 allies 34083 | -4/Hub_04(d) | Discovered new exit (range 9) 34103 | -4/Hub_04(d) | Learned 2 Proximity Caves zone layouts 34137 | -4/Hub_04(d) | Learned Quarantine emergency access door positions 34162 | -4/Hub_04(d) | Learned Armory emergency access door positions 34177 | -4/Hub_04(d) | Learned Factory security intel 34180 | -4/Hub_04(d) | Learned 2 Upper Caves zone layouts 34181 | -4/Hub_04(d) | Learned Factory stockpile data 34182 | -4/Hub_04(d) | Learned 2 Proximity Caves zone layouts 34183 | -4/Hub_04(d) | Learned Factory stockpile data 34187 | -4/Hub_04(d) | Learned location of 1 exit from Armory 34201 | -4/Hub_04(d) | Learned Factory repair station intel 34223 | -4/Hub_04(d) | Network Hub disabled 34227 | -4/Hub_04(d) | Learned Testing non-interactive machine intel 34337 | -4/Hub_04(d) | Lost 3 parts (1n2w) 34388 | -4/Hub_04(d) | Discovered new exit (range 9) 34459 | -4/Hub_04(d) | Discovered new exit (range 13) 34526 | -4/Hub_04(d) | Spotted Lightning 34543 | -4/Hub_04(d) | Spotted Lightning 34550 | -4/Hub_04(d) | Destroyed Lightning 34553 | -4/Hub_04(d) | Destroyed Lightning 34562 | -4/Hub_04(d) | Spotted Lightning 34565 | -4/Hub_04(d) | Destroyed Lightning 34676 | -4/Hub_04(d) | Network Hub disabled 34718 | -4/Hub_04(d) | First assault squad dispatched 34764 | -4/Hub_04(d) | Spotted Lightning 34765 | -4/Hub_04(d) | Spotted Lightning 34767 | -4/Hub_04(d) | Spotted Lightning 34772 | -4/Hub_04(d) | Destroyed Lightning 34774 | -4/Hub_04(d) | Destroyed Lightning 34776 | -4/Hub_04(d) | Destroyed Lightning 34786 | -4/Hub_04(d) | Found Prototype Energy Cannon 34789 | -4/Hub_04(d) | Found Prototype Energy Cannon 34798 | -4/Hub_04(d) | Network Hub disabled 34829 | -4/Hub_04(d) | Lost 3 parts (1n2u) 34840 | -4/Hub_04(d) | Destroyed 9 combat bots 34940 | -4/Hub_04(d) | Garrison activated, responded to threat 34940 | -4/Hub_04(d) | Spotted Lightning 34942 | -4/Hub_04(d) | Spotted Lightning 34943 | -4/Hub_04(d) | Spotted Lightning 34944 | -4/Hub_04(d) | Destroyed Lightning 34946 | -4/Hub_04(d) | Destroyed Lightning 34949 | -4/Hub_04(d) | System corruption reached 10% 34950 | -4/Hub_04(d) | Destroyed Lightning 35026 | -4/Hub_04(d) | Identified exit to Garrison 35047 | -4/Hub_04(d) | Network Hub disabled 35181 | -4/Hub_04(d) | Entered Garrison 35195 | -4/Garrison | Identified EMDS (x2) 35208 | -4/Garrison | Heavy support dispatched to Research 35230 | -4/Garrison | Spotted B-86 Titan 35295 | -4/Garrison | Destroyed B-86 Titan 35322 | -4/Garrison | Found Relay Coupler [Proto] 35324 | -4/Garrison | Lost 6 parts (2n2u2w) 35325 | -4/Garrison | Found Relay Coupler [Proto] 35499 | -4/Garrison | Triggered checkpoint 35512 | -4/Garrison | Triggered checkpoint 35548 | -4/Garrison | Destroyed 8 combat bots 35566 | -4/Garrison | Triggered checkpoint 35575 | -4/Garrison | Triggered checkpoint 35610 | -4/Garrison | Destroyed 10 combat bots 35704 | -4/Garrison | H-XX Assembler disabled 35818 | -4/Garrison | Discovered new exit (range 13) 35953 | -4/Garrison | Triggered checkpoint 36040 | -4/Garrison | Expanded RIF knowledge: Code Merge 36058 | -4/Garrison | Garrison Relay disabled 36120 | -4/Garrison | Spotted Striker 36120 | -4/Garrison | Spotted Striker 36137 | -4/Garrison | Assimilated Striker with formatsys_high 36152 | -4/Garrison | Assimilated Striker with formatsys_high 36164 | -4/Garrison | Rewired Executioner 36170 | -4/Garrison | Rewired Executioner 36238 | -4/Garrison | Found Fusion Bomb Launcher 36419 | -4/Garrison | Discovered new exit (range 5) 36648 | -4/Garrison | Discovered new exit (range 13) 36779 | -4/Garrison | Triggered checkpoint 36868 | -4/Garrison | Garrison Relay disabled 36976 | -4/Garrison | Entered Research 36976 | -3/Research | Accompanied by 4 allies 36976 | -3/Research | Evolved 2 slots: Utility x1, Weapon x1 37071 | -3/Research | Found Prototype Processor 37071 | -3/Research | Identified Exp. Core Analyzer 37087 | -3/Research | Found Exp. Targeting Computer 37176 | -3/Research | Revision forces began assault on 0b10 37204 | -3/Research | Met up with Revision 17++ 37224 | -3/Research | Spotted B-86 Titan 37241 | -3/Research | Destroyed B-86 Titan 37351 | -3/Research | Lost 3 allies 37410 | -3/Research | Found Adv. Kinecellerator 37676 | -3/Research | Research terminal network offline 37818 | -3/Research | Spotted Striker 37879 | -3/Research | Spotted Executioner 37883 | -3/Research | Spotted Striker 37885 | -3/Research | Identified exit to Garrison 37885 | -3/Research | Spotted Striker 37894 | -3/Research | Entered Garrison 37918 | -3/Garrison | Lost 5 allies 38511 | -3/Garrison | Lost 6 allies 38547 | -3/Garrison | Build established: Botlord-Gunner 38580 | -3/Garrison | Triggered checkpoint 38642 | -3/Garrison | Lost 3 allies 38680 | -3/Garrison | Expanded RIF knowledge: Hotswap 38705 | -3/Garrison | Garrison Relay disabled 38829 | -3/Garrison | Spotted B-86 Titan 38835 | -3/Garrison | Triggered checkpoint 38843 | -3/Garrison | Assimilated Titan 8a with formatsys_high 38878 | -3/Garrison | Lost 3 allies 39092 | -3/Garrison | Triggered checkpoint 39155 | -3/Garrison | Triggered checkpoint 39182 | -3/Garrison | Build established: Scavenger-Gunner 39361 | -3/Garrison | Garrison Relay disabled 39415 | -3/Garrison | Discovered new exit (range 12) 39424 | -3/Garrison | Triggered checkpoint 39454 | -3/Garrison | Triggered checkpoint 39476 | -3/Garrison | Garrison Relay disabled 39607 | -3/Garrison | Crushed by falling debris 39937 | -3/Garrison | Found Unknown Device 39937 | -3/Garrison | Identified Adv. Force Booster 39984 | -3/Garrison | Triggered checkpoint 40004 | -3/Garrison | Build established: Botlord-Gunner 40055 | -3/Garrison | Discovered new exit (range 14) 40136 | -3/Garrison | Triggered checkpoint 40182 | -3/Garrison | Garrison Relay disabled 40283 | -3/Garrison | Garrison Relay disabled 40312 | -3/Garrison | Triggered checkpoint 40335 | -3/Garrison | Discovered new exit (range 15) 40384 | -3/Garrison | Entered Research 40384 | -2/Research | Evolved 2 slots: Utility x2 40411 | -2/Research | Lost 5 allies 40567 | -2/Research | Spotted B-90 Cyclops 40601 | -2/Research | Destroyed B-90 Cyclops 41590 | -2/Research | Identified exit to Garrison 41598 | -2/Research | Entered Garrison 41598 | -2/Garrison | Accompanied by 2 allies 41690 | -2/Garrison | Triggered checkpoint 41716 | -2/Garrison | Garrison Relay disabled 41892 | -2/Garrison | Triggered checkpoint 41892 | -2/Garrison | Spotted B-90 Cyclops 41901 | -2/Garrison | Allies destroyed B-90 Cyclops 41942 | -2/Garrison | Triggered checkpoint 41985 | -2/Garrison | Lost 12 allies 42032 | -2/Garrison | Triggered checkpoint 42075 | -2/Garrison | Garrison Relay disabled 42110 | -2/Garrison | Discovered new exit (range 15) 42121 | -2/Garrison | Expanded RIF knowledge: Autooverride 42178 | -2/Garrison | Discovered new exit (range 50) 42178 | -2/Garrison | Discovered new exit (range 36) 42178 | -2/Garrison | Discovered new exit (range 33) 42281 | -2/Garrison | Identified exit to Access 42623 | -2/Garrison | Entered Access 42623 | -1/Access | Evolved 2 slots: Utility x2 42641 | -1/Access | Identified exit to Garrison 42641 | -1/Access | Entered Garrison 42717 | -1/Garrison | Garrison Relay disabled 42779 | -1/Garrison | Spotted B-99 Colossus 42780 | -1/Garrison | Assimilated Colossus 10a with formatsys_high 42783 | -1/Garrison | Triggered checkpoint 42783 | -1/Garrison | Triggered checkpoint 42801 | -1/Garrison | P-80 Master assimilated allied Terminator 10c 42812 | -1/Garrison | Destroyed 9 combat bots 42823 | -1/Garrison | Triggered checkpoint 42845 | -1/Garrison | Lost 5 allies 42875 | -1/Garrison | Discovered new exit (range 44) 42875 | -1/Garrison | Discovered new exit (range 58) 42875 | -1/Garrison | Discovered new exit (range 37) 42875 | -1/Garrison | Discovered new exit (range 56) 42994 | -1/Garrison | Expanded RIF knowledge: Threat Obfuscation 43116 | -1/Garrison | Triggered checkpoint 43175 | -1/Garrison | Garrison Relay disabled 43310 | -1/Garrison | Triggered checkpoint 43347 | -1/Garrison | Garrison Relay disabled 43366 | -1/Garrison | Rewired Executioner 43370 | -1/Garrison | Rewired Executioner 43426 | -1/Garrison | Triggered checkpoint 43486 | -1/Garrison | Entered Access 43486 | -1/Access | Accompanied by 1 ally 43593 | -1/Access | System corruption reached 10% 44387 | -1/Access | Discovered new exit (range 8) 44396 | -1/Access | Entered Command 44463 | -1/Command | Repaired Centrium Light Armor Plating 44547 | -1/Command | Spotted B-99 Colossus 44598 | -1/Command | Destroyed B-99 Colossus 44617 | -1/Command | Found Hvy. Insulated Plating 44628 | -1/Command | Lost 6 parts (2n4u) 44629 | -1/Command | Found Hvy. Reflective Plating 44791 | -1/Command | Found Gamma Bomb Array 45004 | -1/Command | Phase Generator disabled 45027 | -1/Command | Build established: Botlord-Tank 45143 | -1/Command | Disengaged cave seal 45213 | -1/Command | Repaired Centrium Light Armor Plating 45341 | -1/Command | Spotted Combat Programmer 45341 | -1/Command | Spotted Combat Programmer 45342 | -1/Command | Spotted M Guard 45344 | -1/Command | Spotted M Guard 45381 | -1/Command | Combat Programmer assimilated allied 05-8XO(M) 45438 | -1/Command | Core integrity fell below 50% 45465 | -1/Command | Lost 16 parts (2p3n6u5w) 45482 | -1/Command | System corruption reached 30% 45510 | -1/Command | Core integrity fell below 20% 45512 | -1/Command | Crushed by falling debris 45514 | -1/Command | Destroyed by 05-8XO(M) with Slug Cannon Last Messages --------------- 45509_ Combat Programmer repels hacking attempt. 45509_ Penetrated by EMDS Slug. 45510_ Combat Programmer repels hacking attempt. 45510_ Rnf. Quantum Reactor destroyed. 45510_ Knocked back. 45510_ Combat Programmer repels hacking attempt. 45511_ Huge Storage Unit destroyed. 45511_ Knocked back. 45512_ The unstable cave ceiling collapses. 45512_ Crushed by falling debris. 45512_ Exp. Targeting Computer destroyed. 45512_ System corrupted by crushing effect (+1). 45513_ Adv. Weapon Cycler destroyed. 45513_ Adv. Remote Datajack destroyed. 45513_ Centrium Leg destroyed. 45513_ Relay Coupler [Swarmer] destroyed. [Achievement: 50k Club] [Achievement: Torch] [Achievement: Overachiever] Map ----- +----------------------------------------------------+ | #### """" # #????????????????????????? | | ""R"" # ! #????????????????????????? | | "" "" # ] #????????????????????????? | | # * #????????????????????????? | | ###### + #????????????????????????? | | ?????# # #????????????????????????? | | ?????# ! ########????????????????????????? | | ?????# !* % #???????????????????????????????? | | ?????# ! %#???????????????????????????????? | | ?????# #???????????????????????????????? | | ?????# #???????????????????????????????? | | ?????# ??????????????????????????????? | | ?????# Y ?????????????????????????????? | | ?????######## #????????????????????????????? | | ???????????? YMp% ###??????????????????????????? | | ???????????? ###????????????????????????? | | ???????????? " "#????????????????????????? | | ????????????#" "#????????????????????????? | | ????????????#"Y ""#????????????????????????? | | ????????????#""%% "####?????????????????????? | | ????????????#"" ##????????????????????? | | ????????????### ##????######????####?? | | ??????????????# #????#* """?? ?? | | ?????????????## % #????# """" #? | | ?????????????#; ! ##???# """" #? | | ?????????????## ] @% #???# """" #? | | ?????????????# ##???# #? | | ?????????????# ###### #? | | ?????????????# # # #? | | ?????????????# "T # #? | | ?????????????# "" + !#? | | ?????????????# MM # #? | | ?????????????# ## ##;##### # #? | | ?????????????#% ## ###????## ###+############? | | ##???????????# ##;########## # #?????????? | | #??????????#" ##### # # #?????????? | | #??????????#" #???# * ! + + #?????????? | | #?########### #???# # # /#########?? | | #?# # #??########## ####### #?? | | #?# # #### #### ####### #?? | | #?# # "" = #?? | | #?# + "T #?? | | #?# "" # #?? | | #### """" ### ####! ###+########## #?? | | + = """" #??????### ### #???# #?? | | #### "" #?#??????# #?# = #???## #### | | ???###+#######?# ?????# #?# #????# # " | | ?????# #??????##+###### #?# ! #????# # " | | ?????# #??????# ## ### [ #????# # | | ######+######?# # ## #????#![ + | +----------------------------------------------------+ Best States ------------- Heat Dissipation 150 Coolant Potential 65 Energy Generation 49 Energy Capacity 875 Matter Stores 300 Matter Capacity 300 Sight Range 20 Terrain Scan Density 10 Armor Coverage 1650 Resistance: KI 30 Resistance: TH 25 Resistance: EM 30 Core Shielding 30 Utility Shielding 90 Weapon Shielding 66 Weapon Cycling 25 Phase Shifting 10 Evasion (%) 55 Targeting Accuracy 24 Launcher Accuracy 40 Target Analysis 8 Core Analysis 8 Recoil Reduction 12 Kinecelleration 50 Force Boost 40 Offensive Hacking 16 Defensive Hacking 10 Relay Coupler Types 5 Relay Coupler Value 259 Item Schematics ----------------- Huge Storage Unit | -8/Materials | Hacked Hvy. EM Shotgun | -8/Materials | Scanalyzed Mak. Sword | -8/Materials | Scanalyzed Plasma Cutter | -7/Factory | Scanalyzed Imp. Signal Interpreter | -7/Factory | Scanalyzed Adv. Shield Generator | -5/Factory | Scanalyzed Robot Schematics ------------------ None Fabricated ------------ Nothing Alien Tech Used ----------------- None Achievements -------------- 404 50k Club Collateral Damage Fearless Giant Slayer Gunslinger Main Advantage Overachiever Pyromaniac Revising The Future Revolutionary Research Torch Turtlemind Ultimate Loadout Challenges ------------ None Game ------ Seed AblativeChromaticMantle Manual? 0 Play Time 08:02:19 Cumulative 141.7 hours Start 2024.11.25 @ 17:21:19 End 2024.11.26 @ 02:01:36 Sessions 1 Manual Loads 0 Difficulty Rogue Special Mode None Game No. 119 Rogue 119 Adventurer 0 Explorer 0 Win Type - Total 3 Types 3/0/0/0/0/0/0/0/0 Lore% 53 Gallery% 58 Achievement% 53 Wizard Run 0 Options --------- Layout 1 ASCII 0 Keyboard 1 Movement Arrows Keybinds 0 Fullscreen 0 Font 20/Smallcaps Map View 50x35 Zoom Use 0% Tactical HUD 1 Map Filters NONE Filters NONE Steam 1 RUN: c03e6e18-1ba9-4f67-8415-32558905f34a